Workbook

Sheet Intro
A1: FreeStyle WorkBook | H1: VVES
A2: Owner@AnalysisChamp.com | H2: 2017-02-22
B3: File: | D3: =CELL("filename") -> C:\Users\Owner\Desktop\[FreeStyle.xlsm]Intro
B4: This workbook contains functions for complex unit conversion, air property calculations, 3-d coordinate transforms and interpolation.
B6: Examples of Functions
B7: This workbook contains numerous functions that perform useful calculations.
B8: The cells with red text can be changed. The cells with blue text contain formulas.
B9: These functions are inserted into cells and formula using the >Insert >Function >User Defined menu commands.
E12: This unique workbook has been prepared for you by Mike Van Voorhis
E13: for calculations and education. It is fully capable and provided free of cost.
E14: Please reply with questions or comments. Thanks!
F18: FreeStyle Unit Converter:
F19: Value= | G19: 2.2 | I19: hzr | L19: =VLOOKUP(ROUND(UCchkval(I19),8)+0.00000001,Names!$L$1140:$M$1193,2) -> 1/time
F20: New Value= | G20: =cvval(G19,I19,I20) -> 2.2 | I20: cycle/s | L20: =VLOOKUP(ROUND(UCchkval(I20),8)+0.00000001,Names!$L$1140:$M$1193,2) -> 1/time
G22: User input is RED
G23: See the "Names" worksheet tab below for a list of unit
G24: names. This list can be searched using Excel filter and data
G25: "find" capabilities.
F27: See Also: | G27: AnalysisChamp.com Online Expression Evaluator
B31: The worksheet functions use protected macros. Users can create worksheets with macro capability by using this worksheet with separate worksheets that contain other macros.
B32: You can call functions from this spreadsheet in your own separate spreadsheets. This allows you to have your own macros and unique workbooks.
C34: Unit Converter Functions:
C35: These functions allow calculations of any parameter at any proper unit combination.
D36: =CVVal(input value, input unit string, output unit string) calculates the parameter value for the given value and units expressed as the output units.
E37: input value = | F37: 40 | G37: (kg*m/s^2) | H37: (input parameter value and units)
E38: output value = | F38: =cvval(F37,G37,G38) -> 40 | G38: (n) | H38: (output parameter value expressed in proper output units)
D39: =CVBaseUnit(unit string) expresses the given units as SI units.
E40: input units = | F40: (lbf/in^2) | G40: (input unit string)
E41: output base units = | F41: =CVBaseUnit(F40) -> (((KG*M)/S^2)/(M)^2)
D42: =CVBaseVal(value,unit string) evaluates the given parameter into SI units.
E43: input parameter = | F43: 100 | G43: (ft*lbf) | H43: (input parameter value and units)
E44: output base parameter = | F44: =CVBaseVal(F43,G43) -> 135.5820679 | G44: =CVBaseUnit(G43) -> ((M)*((KG*M)/S^2))
D45: =UCBaseData(record,field) returns the specific field and record from the unit converter bases factors database. Field 1 is the name, field 2 is the check value and field 3 is the description.
F46: field
E47: record | F47: 1 | G47: 2 | H47: 3
E48: 9 | F48: =UCbaseData($E$48,F$47) -> S | G48: =UCbaseData($E$48,G$47) -> 31 | H48: =UCbaseData($E$48,H$47) -> time
D49: =UCBaseIndex(name) returns the specific record number from the unit converter base factors database for a given name.
E50: name (field 1) | F50: record
E51: s | F51: =UCbaseIndex(E51) -> 9
D52: =UCChkval(Unit string) returns a unique check value for a unit text string based on its base units. Proper unit conversions yield equal check values.
E53: String | F53: Value
E54: (kg*m)/(s^2) | F54: =UCchkval(E54) -> 0.1945889698
D55: =UCFactorData(record,field) returns the specific field and record from the unit converter factors database.
E56: Field 1 = name, field 2 = description, field 3 = factor, field 4 = bias, field 5 = base unit, field 6 = comment, field 7 = common mark
E57: Special user defined units (named usera and userb) can be used. Currency is based on 1 us dollar = .5 British pound = .65 Euro = .01 Yen
F58: field
E59: record | F59: 1 | G59: 2 | H59: 3 | I59: 4 | J59: 5 | K59: 6 | L59: 7
E60: 45 | F60: =UCFactorData($E60,F$59) -> DEGC | G60: =UCFactorData($E60,G$59) -> degrees Celsius | H60: 1 | I60: -273.15 | J60: (DEGK) | K60: temperature | L60: x
D61: =UCFactorIndex(name) returns the specific record number from the unit converter factors database for a given name.
E62: name (field 1) | F62: record
E63: lbf | F63: =UCFactorIndex(E63) -> 248
D64: =UCFactorDataSearch(start, search string, field) returns the next record number from the given start record of the unit converter factors database for a given text string within the given field.
F65: field
E66: search string | F66: 6
E67: temp | F67: =UCFactorDataSearch(1,$E67,F$66) -> 45
E68: ="next "&E67 -> next temp | F68: =UCFactorDataSearch(F67+1,$E$67,F$66) -> 133
E69: ="next "&E67 -> next temp | F69: =UCFactorDataSearch(F68+1,$E$67,F$66) -> 218
C71: Air and Standard Atmosphere Functions:
C72: These functions allow calculations of atmospheric properties at an input altitude given in meters
D73: =AirPropTemp(altitude) calculates the temperature of air at the given altitude for the "US Standard Atmosphere"
E74: altitude = | F74: 0 | G74: (m) | H74: (meter)
F75: =AirPropTemp(F74) -> 288.1666667 | G75: (DEGK) | H75: (degrees Kelvin)
D76: =AirPropPress(altitude) calculates the absolute pressure of air at the given altitude for the "US Standard Atmosphere"
F77: =AirPropPress(F74) -> 101325.3532 | G77: (pa) | H77: (Pascal, Newton/Meter^2)
D78: =AirPropDens(altitude) calculates the mass density of air at the given altitude for the "US Standard Atmosphere"
F79: =AirPropDens(F74) -> 1.217966773 | G79: (kg/m^3) | H79: (kilogram/meter^3)
D80: =AirPropSound(altitude) calculates the speed of sound in air at the given altitude using the "US Standard Atmosphere" properties and ideal gas laws
F81: =AirPropSound(F74) -> 341.2756981 | G81: (m/s) | H81: (meter/second)
D82: =AirPropKV(altitude) calculates the kinematic viscosity of air at the given altitude using the "US Standard Atmosphere" properties and ideal gas laws
F83: =AirPropKV(F74) -> 1.787927928e-05 | G83: (kg/(m*s)) | H83: (kilogram/(meter*second))
D84: =AirPropDV(altitude) calculates the dynamic viscosity of air at the given altitude using the "US Standard Atmosphere" properties and ideal gas laws
F85: =AirPropDV(F74) -> 1.467961169e-05 | G85: (m^2/s) | H85: (meter^2/second)
D86: =AirDensity(temperature,pressure) calculates the density of air at the given temperature and pressure using ideal gas laws.
E87: temperature = | F87: =CVBaseVal(70,"degf") -> 294.2611111 | G87: (DEGK) | H87: (degrees Kelvin)
E88: pressure = | F88: =CVBaseVal(1,"atm") -> 101325 | G88: (pa) | H88: (Pascal, Newton/Meter^2)
F89: =AirDensity(F87,F88) -> 1.192737278 | G89: (kg/m^3) | H89: (kilogram/meter^3)
D90: =Reynold(length,density,velocity,kinematic viscosity) calculates the Reynold's number of air at the given density, velocity, kinematic viscosity and length.
E91: length = | F91: 2 | G91: (m) | H91: (meter)
E92: density = | F92: =F79 -> 1.217966773 | G92: =G79 -> (kg/m^3) | H92: (kilogram/meter^3) - see above
E93: velocity = | F93: 93.9 | G93: (m/s) | H93: (meter/second)
E94: kinematic viscosity = | F94: =F83 -> 1.787927928e-05 | G94: =G83 -> (kg/(m*s)) | H94: (kilogram/(meter*second)) - see above
F95: =Reynold(F91,F92,F93,F94) -> 12793253.93 | G95: (item) | H95: dimensionless, Re < 2000 is laminar, Re > 4000 is turbulent
C97: Vector Functions:
C98: These functions allow calculations of vectors and coordinate transforms
D99: =VFMabg(vector-dx-dy-dz) converts a vector expressed as [dx,dy,dz] into its [magnitude, A-xy, A-yz, A-zx] components.
E100: A vector is expressed by its dx, dy, dz coordinates and converted to magnitude, A-xy, A-yz and A-zx angles: | P100: =180/PI()*P102 -> 90 | Q100: =180/PI()*Q102 -> 0 | R100: =180/PI()*R102 -> 269.9999969
F101: xi | G101: yi | H101: zi | I101: xf | J101: yf | K101: zf | L101: dx | M101: dy | N101: dz | O101: Mag | P101: A-xy | Q101: A-yz | R101: A-zx
E102: Vector = | F102: 0 | G102: 0 | H102: 0 | I102: 0 | J102: 1 | K102: 0 | L102: =ROUND(I102-F102,P108) -> 0 | M102: =ROUND(J102-G102,P108) -> 1 | N102: =ROUND(K102-H102,P108) -> 0 | O102: =VFMabg(L102:N102) -> 1 | P102: 1.570796327 | Q102: 0 | R102: 4.712388927
D103: =VFxyz(vector-mag-Axy-Ayz-Azx) converts a vector expressed as [magnitude, A-xy, A-yz, A-zx] into its [dx,dy,dz] components.
E104: A vector is expressed by its magnitude, A-xy, A-yz and A-zx angles and converted to its dx, dy, dz coordinates:
F105: Mag | G105: A-xy | H105: A-yz | I105: A-zx | J105: x0 | K105: y0 | L105: z0 | M105: dx | N105: dy | O105: dz | P105: x | Q105: y | R105: z
E106: Vector = | F106: 1 | G106: 1.570796327 | H106: 0 | I106: 4.712388927 | J106: 0 | K106: 0 | L106: 0 | M106: =VFxyz(F106:I106) -> -3.491483361e-15 | N106: 1 | O106: -5.358978968e-08 | P106: =ROUND(J106+M106,P109) -> 0 | Q106: =ROUND(K106+N106,P109) -> 1 | R106: =ROUND(L106+O106,P109) -> 0
E108: Dot Product = | F108: =ROUND((L102*M106)+(M102*N106)+(N102*O106),P108) -> 1 | G108: =(L102*M106)+(M102*N106)+(N102*O106) | K108: http://en.wikipedia.org/wiki/Dot_product | O108: digits= | P108: 3
E109: Cross Product = | F109: =ROUND((M102*O106-N102*N106),P109) -> 0 | G109: =ROUND((N102*M106-L102*O106),P109) -> 0 | H109: =ROUND((L102*N106-M102*M106),P109) -> 0 | K109: http://en.wikipedia.org/wiki/Cross_product | O109: digits= | P109: 3
D111: =CXFxp(x0,y0,z0,a,b,c,ang,x,y,z) calculates the x' coordinate of x in a transformed system with origin at x0,y0,z0 that has been rotated along the a,b,c vector at angle ang.
D112: =CXFyp(x0,y0,z0,a,b,c,ang,x,y,z) calculates the y' coordinate of y in a transformed system with origin at x0,y0,z0 that has been rotated along the a,b,c vector at angle ang.
D113: =CXFzp(x0,y0,z0,a,b,c,ang,x,y,z) calculates the z' coordinate of z in a transformed system with origin at x0,y0,z0 that has been rotated along the a,b,c vector at angle ang.
E114: Coordinate transform from one 3-d system to another consists of x,y,z and x',y',z' when the x0,y0,z0 and a rotation axis defined by I,j,k,theta is given:
G115: x0 | H115: y0 | I115: z0 | L115: a | M115: b | N115: c | O115: ang
F116: Prime system Origin = | G116: 0 | H116: 0 | I116: 0 | K116: Rotation Axis = | L116: 0 | M116: 1 | N116: 1 | O116: =RADIANS(30) -> 0.5235987756
G117: x | H117: y | I117: z
F118: Point in x,y,z system= | G118: 0 | H118: 0 | I118: 0
G119: x' | H119: y' | I119: z'
F120: Point in x', y', z' system = | G120: =CXFxp(G116,H116,I116,L116,M116,N116,O116,G118,H118,I118) -> 0 | H120: =CXFyp(G116,H116,I116,L116,M116,N116,O116,G118,H118,I118) -> 0 | I120: =CXFzp(G116,H116,I116,L116,M116,N116,O116,G118,H118,I118) -> 0
D121: =CXFx(x0,y0,z0,a,b,c,ang,x',y',z') calculates the x coordinate of x' from a transformed system with origin at x0,y0,z0 that has been rotated along the a,b,c vector at angle ang.
D122: =CXFy(x0,y0,z0,a,b,c,ang,x',y',z') calculates the y coordinate of y' from a transformed system with origin at x0,y0,z0 that has been rotated along the a,b,c vector at angle ang.
D123: =CXFz(x0,y0,z0,a,b,c,ang,x',y',z') calculates the z coordinate of z' from a transformed system with origin at x0,y0,z0 that has been rotated along the a,b,c vector at angle ang.
E124: Coordinate transform from one 3-d system to another consists of x,y,z and x',y',z' when the x0,y0,z0 and a rotation axis defined by I,j,k,theta is given:
G125: x | H125: y | I125: z
F126: Point in x,y,z system= | G126: =CXFx(G116,H116,I116,L116,M116,N116,O116,G128,H128,I128) -> 0.8623726252 | H126: =CXFy(G116,H116,I116,L116,M116,N116,O116,G128,H128,I128) -> -0.4097395311 | I126: =CXFz(G116,H116,I116,L116,M116,N116,O116,G128,H128,I128) -> -0.2973672501
G127: x' | H127: y' | I127: z'
F128: Point in x', y', z' system = | G128: 0.707107 | H128: -0.7071067812 | I128: 0
C130: Interpolator Function:
C131: This function calculates linear interpolated values
D132: =INTP(DataInx,DataIny,x) calculates the y value for a given table of x y data at a given x' data point by linear interpolation.
F133: x | G133: 1 | H133: 2 | I133: 3 | J133: 4 | K133: 5 | L133: 6
F134: y | G134: 1 | H134: 10 | I134: 100 | J134: 1000 | K134: 10000 | L134: 100000
F136: x' = | G136: 2.5
F137: y' = | G137: =Intp(G133:L133,G134:L134,G136) -> 55
D139: =INTP(DataInx,DataIny,x) calculates the y value for a given table of x y data at a given x' data point by linear interpolation.
F140: x | G140: y
F141: 1 | G141: 1
F142: 2 | G142: 10
F143: 3 | G143: 100
F144: 4 | G144: 1000
F145: 5 | G145: 10000
F146: 6 | G146: 100000
F148: x' | G148: y'
F149: 2.5 | G149: =Intp(F141:F146,G141:G146,F149) -> 55
C151: Section Functions:
C152: These functions calculate area, centroid and moment of inertia for general sections such as:
F153: x | G153: y
F154: 0 | G154: 0
F155: 0 | G155: 5
F156: 10 | G156: 5
F157: 10 | G157: 0
F158: =F154 -> 0 | G158: =G154 -> 0
D159: =Section_Area(xydata) calculates the area for a given section defined by x y data.
E160: Area = | F160: =Section_Area($F$154:$G$158) -> 50 | G160: =B159&"^2" -> ^2 | H160: =Section_Area($F$150:$G$154)
D161: =Section_XBar(xydata) and =Section_YBar(xydata) calculates the centroid coordinates for a given section defined by x y data.
E162: xBar= | F162: =Section_XBar($F$154:$G$158) -> 5 | G162: =B159 -> 0 | H162: =Section_XBar($F$150:$G$154)
E163: yBar= | F163: =Section_YBar($F$154:$G$158) -> 2.5 | G163: =C159 -> 0 | H163: =Section_YBar($F$150:$G$154)
D164: =Section_IX(xydata) and =Section_IY(xydata) calculates the moment of inertia about the x and y axis for a
E165: given section defined by x y data.
E166: Ix= | F166: =Section_IX($F$154:$G$158) -> 416.6666667 | G166: =B159&"^4" -> ^4 | H166: =Section_IX($F$150:$G$154)
E167: Iy= | F167: =Section_IY($F$154:$G$158) -> 1666.666667 | G167: =C159&"^4" -> ^4 | H167: =Section_IY($F$150:$G$154)
D168: =Section_IXBar(xydata) and =Section_IXBar(xydata) calculates the moment of inertia about the centroid for a
E169: given section defined by x y data.
E170: IxBar= | F170: =Section_IXBar($F$154:$G$158) -> 104.1666667 | G170: =G166 -> ^4 | H170: =Section_IXBar($F$150:$G$154)
E171: IyBar= | F171: =Section_IYBar($F$154:$G$158) -> 416.6666667 | G171: =G167 -> ^4 | H171: =Section_IYBar($F$150:$G$154)
D172: Note: Polar moment of inertia is sum of IXBar and IYBar
E173: JBar= | F173: =F170+F171 -> 520.8333333 | G173: =G171 -> ^4 | H173: =F166+F167
C175: Statistics Function:
C176: This function calculates the factorial of a given integer such as:
D177: =FACTORIAL(integer) calculates the factorial of "integer"
E178: integer = | F178: 6 | G178: (item) | H178: (item)
F179: =FACTORIAL(F178) -> 720 | G179: =G178 -> (item) | H179: =H178 -> (item)
E201: IE EXPLORER TEST | F201: IE EXPLORER TEST | G201: (case sensitive) | H201: (case sensitive) | I201: (case sensitive)
E203: myPageTitle As String | F203: Const myPageTitle As String | G203: Wikipedia | H203: Wikipedia | I203: Wikipedia
E204: myPageURL As String | F204: Const myPageURL As String | G204: http://en.wikipedia.org/wiki/Main_Page | H204: http://en.wikipedia.org/wiki/Main_Page | I204: http://en.wikipedia.org/wiki/Main_Page
E205: mySearchForm As String | F205: Const mySearchForm As String | G205: searchform | H205: searchform | I205: searchform
E206: mySearchInput As String | F206: Const mySearchInput As String | G206: searchInput | H206: searchInput | I206: searchInput
E207: mySearchTerm As String | F207: Const mySearchTerm As String | G207: Document Object Model | H207: Document Object Model | I207: Document Object Model
E208: myButton As String | F208: Const myButton As String | G208: go | H208: go | I208: go

Sheet help
A1: =Intro!A1 -> FreeStyle WorkBook
A2: =Intro!A2 -> Owner@AnalysisChamp.com | E2: =Intro!H2 -> 2017-02-22
B4: Calculation Notes
B5: This collection of worksheet calculations demonstrates use of the FreeStyle functions in order to allow
B6: you to solve problems accurately. The structure of worksheet calculations consists of six columns of data
B7: for each parameter. The "Parameter", Value", "Unit", and "Comment" columns contain information
B8: about each.
B10: Black vs red cells designate formula and user input cells respectively. The data in red cells
B11: can be changed without affecting the worksheet calculations. Data in black cells needs to remain unchanged
B12: as it affects the calculation method for each example. Intermediate calculations (such as those of temperature
B13: and the universal gas constant, RGC) must remain as listed to properly define these quantities in the
B14: calculations.
B16: These example calculations may be re-used in your own studies.
B17: The red unit strings (input or calculated results) may be changed for your own calculations
B18: (provided the units are still proper) with resulting values calculated correctly.
B20: All examples may be evaluated using the Excel TOOLS > GOAL SEEK function to calculate parameters.
B21: This action is taken when the unknown parameter is set up as an "input value" in the calculation worksheet.
B22: To calculate the desired parameter, set up the Goal Seeker to iterate on the unknown parameter cell until the
B23: known parameter is established.
B25: The other two columns, the "BaseVal" and "BaseUnit" columns contain the baseline
B26: parameters for calculation formulas. Free-form unit handling is accomplished by performing calculations
B27: only on the parameter values when expressed in base units. The FreeStyle workbook provides functions that enable
B28: easy conversion into these units. The actual calculation formula exist in these columns, both for the values
B29: and for the text stings defining the resulting value. This can be seen by inspection of the "BaseVal" and
B30: "BaseUnit" cells.
B32: The calculations provided on this worksheet can be searched using the Excel
B33: EDIT > FIND function. The examples may be organized using the Excel DATA > GROUP AND OUTLINE functions
B34: to show or hide information.
B36: The workbook contains several macros that enable worksheet calculation formula to be entered for unit checks.
B37: The "CellFormulaLeft()", "CellFormulaRight()", "CellFormulaUp()" and "CellFormulaDown()" macros will take the
B38: formula in the active cell and paste a printable text version in the ajacent cell left, right, above or below respectively.
B40: The "CVBaseUnitFormula()" macro will use the formula in the active cell to create a new formula that checks to
B41: ensure that the units are properly combined for the "value" field. Specifically, the "BaseUnit" column formula
B42: is created to compare the calculated value with the "Unit" column string to ensure that the formula are proper.
B43: The macro will place the formula in the cell ajacent to the right of the cell from which it is executed.
B45: Example 01 - Temperature Calculations
B46: What is the absolute temperature, degrees Kelvin, at 32 degrees farenheight (F)?
B48: Lookup the following unit names on the "Names" worksheet:
B49: temperature, Kelvin = (degK)
B50: temperature, Farenheight = (degF)
B52: Enter the following into the worksheet:
B54: Parameter | C54: Value | D54: Unit | E54: Comment | F54: BaseVal | G54: BaseUnit
B55: Temperature = | C55: 32 | D55: degF | E55: input value | F55: =CVBaseVal(C55,D55) -> 273.15 | G55: =CVBaseUnit(D55) -> (DEGK)
B56: Temperature = | C56: =cvval(F56,G56,D56) -> 273.15 | D56: degK | E56: calculated value | F56: =F55 -> 273.15 | G56: =G55 -> (DEGK)
B58: Notes: The factors can be found by filtering the list on "Type" containing text "temp".
B59: The factor list is on the [Names] worksheet.
B62: Example 02 - Length Conversions
B63: What is the length, in feet, of 200 rods?
B65: Lookup the following unit names on the "Names" worksheet:
B66: length, feet = (FT)
B67: Length, rods = (ROD)
B69: Enter the following into the worksheet:
B71: Parameter | C71: Value | D71: Unit | E71: Comment | F71: BaseVal | G71: BaseUnit
B72: Length = | C72: 200 | D72: ROD | E72: input value | F72: =CVBaseVal(C72,D72) -> 1005.84 | G72: =CVBaseUnit(D72) -> (M)
B73: Length = | C73: =cvval(F73,G73,D73) -> 3299.9934 | D73: FT | E73: calculated value | F73: =F72 -> 1005.84 | G73: =G72 -> (M)
B75: Notes: The factor names can be found by filtering the list on "Description" containing text "rod" and "feet".
B76: The factor list is on the [Names] worksheet. The filter is turned off by pressing the [Show All] button.
B79: Example 03 - Speed, Torque and Power Calculations
B80: What is the torque, in pound-feet, of a shaft driving a 10 horsepower load at 3600 revolutions per minute?
B81: Power = torque * speed so torque = power / speed
B83: Lookup the following unit names on the "Names" worksheet:
B84: power = horsepower (HP)
B85: speed = revolutions per minute = (RPM)
B86: torque = pounds-force * feet (LBF*FT)
B88: Enter the following into the worksheet:
B90: Parameter | C90: Value | D90: Unit | E90: Comment | F90: BaseVal | G90: BaseUnit
B91: Power = | C91: 10 | D91: HP | E91: input value | F91: =CVBaseVal(C91,D91) -> 7456.99872 | G91: =CVBaseUnit(D91) -> ((KG*M^2)/S^3)
B92: Speed = | C92: 3600 | D92: RPM | E92: input value | F92: =CVBaseVal(C92,D92) -> 376.9911184 | G92: =CVBaseUnit(D92) -> (M/M/S)
B93: Torque = | C93: =cvval(F93,G93,D93) -> 14.58917375 | D93: FT*LBF | E93: calculated value | F93: =F91/F92 -> 19.78030345 | G93: ="("&G91&")/("&G92&")" -> (((KG*M^2)/S^3))/((M/M/S))
B95: Notes: The torque is a complex unit consisting of the product of force (lbf) and moment arm (ft).
B96: There is no "lbf*ft" unit factor in the database. The converter calculates it from the base units, (lbf) and (ft).
B97: A factor for rotational speed, (rpm), is included in the table for convenience. It could have been entered
B98: as "rev/min" since these base factors are in the table. The calculation formula is in the "BaseVal"
B99: column. A formula using the unit strings is in the "BaseUnit" column.
B102: Example 04 - Gas Law Calculations
B103: What is the volume per mole of an ideal gas (like air) at 0 degC (273.15 degK) and atmoshperic pressure?
B105: p*V = n*R*T so V/n = R*T/p
B107: Lookup the following unit names on the "Names" worksheet:
B108: R = universal gas constant (RGC)
B109: T = temperature = 273.15 (degK)
B110: p = 1 Atmoshpere (ATM)
B111: v = liters (L) and
B112: n = moles (MOL)
B114: Enter the following into the worksheet:
B116: Parameter | C116: Value | D116: Unit | E116: Comment | F116: BaseVal | G116: BaseUnit
B117: Universal Gas Constant = | C117: 1 | D117: RGC | E117: input value | F117: =CVBaseVal(C117,D117) -> 8.31441 | G117: =CVBaseUnit(D117) -> ((((KG)*(M^2))/(S^2))/(MOL*DEGK))
B118: Temperature = | C118: 0 | D118: degC | E118: input value | F118: =CVBaseVal(C118,D118) -> 273.15 | G118: =CVBaseUnit(D118) -> (DEGK)
B119: Temperature = | C119: =cvval(F119,G119,D119) -> 273.15 | D119: degK | E119: calculated value | F119: =F118 -> 273.15 | G119: =G118 -> (DEGK)
B120: Pressure = | C120: 1 | D120: ATM | E120: input value | F120: =CVBaseVal(C120,D120) -> 101325 | G120: =CVBaseUnit(D120) -> (KG/(M*S^2))
B121: Specific Volume = | C121: =cvval(F121,G121,D121) -> 22.4138277 | D121: L/MOL | E121: calculated value | F121: =F117*F119/F120 -> 0.0224138277 | G121: ="("&G117&")*("&G119&")/("&G120&")" -> (((((KG)*(M^2))/(S^2))/(MOL*DEGK)))*((DEGK))/((KG/(M*S^2)))
B123: Notes: Temperatures for gas law calculations must be absolute. Celsius (degC) and Farenheight (degF)
B124: will give erroneous results. Many physical, chemical and engineering calculations require absolute temperatures.
B127: Example 05 - Air Density Calculations
B128: What is the density of air, in pounds per cubic foot, at 15 degC (288 degK) and atmospheric pressure of 30.10 inches-mercury?
B130: p*V = n*R*T and mass = moles * grams per mole (gpm) so n/V = p/(R*T) and
B131: density = n*gpm/V = p * gpm / (R*T)
B133: Lookup the following unit names on the "Names" worksheet:
B134: R = universal gas constant (RGC)
B135: T = temperature = 288 (degK)
B136: p = 30.1 in-hg (ATM)
B137: gpm = 28.8 (GM/MOL)
B139: Enter the following into the worksheet:
B141: Parameter | C141: Value | D141: Unit | E141: Comment | F141: BaseVal | G141: BaseUnit
B142: Universal Gas Constant = | C142: 1 | D142: RGC | E142: constant | F142: =CVBaseVal(C142,D142) -> 8.31441 | G142: =CVBaseUnit(D142) -> ((((KG)*(M^2))/(S^2))/(MOL*DEGK))
B143: Temperature = | C143: 288 | D143: degK | E143: input value | F143: =CVBaseVal(C143,D143) -> 288 | G143: =CVBaseUnit(D143) -> (DEGK)
B144: Temperature = | C144: =cvval(F144,G144,D144) -> 288 | D144: degK | E144: calculated value | F144: =F143 -> 288 | G144: =G143 -> (DEGK)
B145: Pressure = | C145: 30.1 | D145: IN[HG] | E145: input value | F145: =CVBaseVal(C145,D145) -> 101643.185 | G145: =CVBaseUnit(D145) -> (KG/(M*S^2))
B146: Molecular Weight = | C146: 28.8 | D146: GM/MOL | E146: input value | F146: =CVBaseVal(C146,D146) -> 0.0288 | G146: =CVBaseUnit(D146) -> (KG)/(MOL)
B147: Density = | C147: =cvval(F147,G147,D147) -> 0.07631828137 | D147: LBM/FT^3 | E147: calculated value | F147: =F145*F146/(F142*F144) -> 1.22249426 | G147: ="("&G145&")*("&G146&")/(("&G142&")*("&G144&"))" -> ((KG/(M*S^2)))*((KG)/(MOL))/((((((KG)*(M^2))/(S^2))/(MOL*DEGK)))*((DEGK)))
B150: Example 06 - Propeller Tip Speed Calculations
B151: What is the tip speed, mach at standard sea level atmosphere, of a 72 inch diameter propeller spinning at 2400 RPM?
B153: V = diameter / 2 * rotational speed
B155: Lookup the following unit names on the "Names" worksheet:
B156: V = velocity = (MACH)
B157: diameter = inch (IN)
B158: rotational speed = revolutions per minute (RPM)
B160: Enter the following into the worksheet:
B162: Parameter | C162: Value | D162: Unit | E162: Comment | F162: BaseVal | G162: BaseUnit
B163: Diameter = | C163: 72 | D163: IN | E163: input value | F163: =CVBaseVal(C163,D163) -> 1.8288 | G163: =CVBaseUnit(D163) -> (M)
B164: Rotational Speed = | C164: 2400 | D164: RPM | E164: input value | F164: =CVBaseVal(C164,D164) -> 251.3274123 | G164: =CVBaseUnit(D164) -> (M/M/S)
B165: Tip Speed = | C165: =cvval(F165,G165,D165) -> 0.6753403191 | D165: MACH[S] | E165: calculated value | F165: =F163/2*F164 -> 229.8137858 | G165: ="("&G163&")*("&G164&")" -> ((M))*((M/M/S))
B168: Example 07 - Hydraulic Power Calculations
B169: What is the hydraulic pressure of a 200 horsepower system with 400 gallons per minute flow rate?
B171: power = pressure * flow rate so pressure = power / flow rate
B173: Lookup the following unit names on the "Names" worksheet:
B174: power = horsepower = (HP)
B175: flow rate = gallons per minute (GAL/MIN)
B176: pressure = psi (PSI)
B178: Enter the following into the worksheet:
B180: Parameter | C180: Value | D180: Unit | E180: Comment | F180: BaseVal | G180: BaseUnit
B181: Power = | C181: 200 | D181: HP | E181: input value | F181: =CVBaseVal(C181,D181) -> 149139.9744 | G181: =CVBaseUnit(D181) -> ((KG*M^2)/S^3)
B182: Flow Rate = | C182: 400 | D182: GAL/MIN | E182: input value | F182: =CVBaseVal(C182,D182) -> 0.02523607856 | G182: =CVBaseUnit(D182) -> (M^3)/(S)
B183: Pressure = | C183: =cvval(F183,G183,D183) -> 857.1428576 | D183: PSI | E183: calculated value | F183: =F181/F182 -> 5909791.969 | G183: ="("&G181&")/("&G182&")" -> (((KG*M^2)/S^3))/((M^3)/(S))
B185: Notes: The pressure could also have been expressed as (LBF/IN^2). Note that LBF (pound force) and LBM (pound mass) are
B186: explicitly described to avoid confusion. They will not evaluate properly if mixed up. Pressure factors for eighteen other units,
B187: such as feet-head, inches(water), and inches(mercury) are included in the factor table.
B190: Example 08 - Dynamic Pressure Calculation
B191: What is the dynamic pressure, in pascals, of an air-stream at 150 knots? Air density is .0775 pounds per cubic foot.
B193: q = 1/2 * rho * V^2
B195: Lookup the following unit names on the "Names" worksheet:
B196: rho = air density = .0775 (LBM/FT^3)
B197: V = 150 knot (KNOT)
B198: q = dynamic pressure = Pascal (PA)
B200: Enter the following into the worksheet:
B202: Parameter | C202: Value | D202: Unit | E202: Comment | F202: BaseVal | G202: BaseUnit
B203: Gas Density = | C203: 0.0775 | D203: LBM/FT^3 | E203: input value | F203: =CVBaseVal(C203,D203) -> 1.241423463 | G203: =CVBaseUnit(D203) -> (KG)/(M)^3
B204: Velocity = | C204: 150 | D204: KNOT | E204: input value | F204: =CVBaseVal(C204,D204) -> 77.16666667 | G204: =CVBaseUnit(D204) -> (M/S)
B205: Dynamic Pressure = | C205: =cvval(F205,G205,D205) -> 3696.148699 | D205: PA | E205: calculated value | F205: =1/2*F203*F204^2 -> 3696.148699 | G205: ="("&G203&")*("&G204&")^2" -> ((KG)/(M)^3)*((M/S))^2
B207: Notes: Knot is a speed unit derived from base units for length and time. It can be manipulated by raising
B208: to a power with proper conversion factor calculation.
B211: Example 09 - Shaft Load with Sheave
B212: What is the side load on a shaft, in Newtons, with a 200 cm diameter sheave if it carries 30 kW power at 55 Hz?
B214: F = p/(n*r)
B216: Lookup the following unit names on the "Names" worksheet:
B217: F = force = (N)
B218: p = kilowatt (KILO*W)
B219: n = shaft speed = Hertz (cycles per second) (HZ)
B220: r = sheave radius = 1/2 * 200 cm (CM)
B222: Enter the following into the worksheet:
B224: Parameter | C224: Value | D224: Unit | E224: Comment | F224: BaseVal | G224: BaseUnit
B225: Power = | C225: 30 | D225: KW | E225: input value | F225: =CVBaseVal(C225,D225) -> 30000 | G225: =CVBaseUnit(D225) -> ((KG*M^2)/S^3)
B226: Shaft Speed = | C226: 55 | D226: HZ | E226: input value | F226: =CVBaseVal(C226,D226) -> 55 | G226: =CVBaseUnit(D226) -> (S^-1)
B227: Diameter = | C227: 200 | D227: CM | E227: input value | F227: =CVBaseVal(C227,D227) -> 2 | G227: =CVBaseUnit(D227) -> (M)
B228: Side Load = | C228: =cvval(F228,G228,D228) -> 545.4545455 | D228: N | E228: calculated value | F228: =F225/(F226*F227/2) -> 545.4545455 | G228: ="("&G225&")/(("&G226&")*("&G227&"))" -> (((KG*M^2)/S^3))/(((S^-1))*((M)))
B230: Notes: Kilo * W was used to designate kilowatts to demonstrate the multiplation factors included in the
B231: factor table. These multipliers include fractions and do not affect the base units, only the multiplation
B232: factors on them.
B235: Example 10 - Radiated Power
B236: What is the ideal radiated power per unit area of a body at 3000 degrees R in watts?
B238: q = sigma * T^4
B240: Lookup the following unit names on the "Names" worksheet:
B241: q = power = (W/M^2)
B242: sigma = Stephan-Boltzman constant (SIGMA)
B243: T = temperature = (degK)
B245: Enter the following into the worksheet:
B247: Parameter | C247: Value | D247: Unit | E247: Comment | F247: BaseVal | G247: BaseUnit
B248: Sigma = | C248: 1 | D248: SIGMA | E248: input value | F248: =CVBaseVal(C248,D248) -> 5.67032e-08 | G248: =CVBaseUnit(D248) -> ((KG*M^2/S^3)/(M^2*DEGK^4))
B249: Temperature = | C249: 3000 | D249: degR | E249: input value | F249: =CVBaseVal(C249,D249) -> 1666.666667 | G249: =CVBaseUnit(D249) -> (DEGK)
B250: Temperature = | C250: =cvval(F250,G250,D250) -> 1666.666667 | D250: degK | E250: calculated value | F250: =F249 -> 1666.666667 | G250: =G249 -> (DEGK)
B251: Radiated Power = | C251: =cvval(F251,G251,D251) -> 437524.6914 | D251: W/M^2 | E251: calculated value | F251: =F248*F250^4 -> 437524.6914 | G251: ="("&G248&")*("&G250&")^4" -> (((KG*M^2/S^3)/(M^2*DEGK^4)))*((DEGK))^4
B253: Notes: The Stefan-Boltzman constant is applied with a factor of "1" in the unit string. One unit of this factor
B254: is given in the numerical expression. Other factors, such as the acceleration of gravity, are used this way.
B257: Example 11 - Chemical Equivalent - Pounds(mass) to Moles
B258: How many pounds of caffeine does a 1.35 mole sample weigh? The chemical formula for caffeine is C8-H10-N4-O2.
B260: The formula weight of caffeine is 8*12.01115 + 10*1.00797 + 4*14.0067 + 2*15.9994
B262: Lookup the following unit names on the "Names" worksheet:
B263: mole = MOL
B264: gram = GM
B265: pound(mass) = LBM (do not confuse with pound force)
B267: Enter the following into the worksheet:
B269: Parameter | C269: Value | D269: Unit | E269: Comment | F269: BaseVal | G269: BaseUnit
B270: Formula Weight, Carbon = | C270: 12.01115 | D270: GM/MOL | E270: input value | F270: =CVBaseVal(C270,D270) -> 0.01201115 | G270: =CVBaseUnit(D270) -> (KG)/(MOL)
B271: Formula Weight, Hydrogen = | C271: 1.00797 | D271: GM/MOL | E271: input value | F271: =CVBaseVal(C271,D271) -> 0.00100797 | G271: =CVBaseUnit(D271) -> (KG)/(MOL)
B272: Formula Weight, Nitrogen = | C272: 14.0067 | D272: GM/MOL | E272: input value | F272: =CVBaseVal(C272,D272) -> 0.0140067 | G272: =CVBaseUnit(D272) -> (KG)/(MOL)
B273: Formula Weight, Oxygen = | C273: 15.9994 | D273: GM/MOL | E273: input value | F273: =CVBaseVal(C273,D273) -> 0.0159994 | G273: =CVBaseUnit(D273) -> (KG)/(MOL)
B274: Formula Weight, Caffeine = | C274: =cvval(F274,G274,D274) -> 194.1945 | D274: GM/MOL | E274: calculated value | F274: =8*F270+10*F271+4*F272+2*F273 -> 0.1941945 | G274: =IF(G270=G271, IF(G272=G273,G270,NA()),NA()) -> (KG)/(MOL)
B275: Quantity of Caffeine = | C275: 1.35 | D275: MOL | E275: input value | F275: =CVBaseVal(C275,D275) -> 1.35 | G275: =CVBaseUnit(D275) -> (MOL)
B276: Sample Weight = | C276: =cvval(F276,G276,D276) -> 0.5779695434 | D276: LBM | E276: calculated value | F276: =F275*F274 -> 0.262162575 | G276: ="("&G275&")*("&G274&")" -> ((MOL))*((KG)/(MOL))
B278: Notes: Moles of a substance are related to mass by 1 Mole = atomic weight * grams mass.
B279: Molecules require multiplication by the number of atoms * the atomic weight.
... 115 more rows

Sheet Names
A1: Unit Names
B2: Rec | C2: Name | D2: Description | E2: Factor | F2: Bias | G2: Base | H2: Type | I2: Fav | J2: chkval
B3: - | C3: 1 | D3: 2 | E3: 3 | F3: 4 | G3: 5 | H3: 6 | I3: 7 | J3: -
B4: 1 | C4: =UCFactorData($B4,C$3) -> ACRE | D4: =UCFactorData($B4,D$3) -> Area - acre | E4: 4046.8564 | F4: 0 | G4: (M^2) | H4: area | I4: x | J4: =UCchkval(G4) -> 289
B5: 2 | C5: =UCFactorData($B5,C$3) -> ACREFT | D5: acre-foot | E5: 1233.4818 | F5: 0 | G5: (M^3) | H5: volume | J5: =UCchkval(G5) -> 4913
B6: 3 | C6: AGATE | D6: agate [Adobe] | E6: 0.0003528 | F6: 0 | G6: (M) | H6: length | J6: 17
B7: 4 | C7: ALEN[DAN] | D7: alen [Danish] | E7: 0.6277 | F7: 0 | G7: (M) | H7: length | J7: 17
B8: 5 | C8: ALEN[SC] | D8: alen [Scandinavia] | E8: 0.6 | F8: 0 | G8: (M) | H8: length | J8: 17
B9: 6 | C9: ALEN[SW] | D9: alen [Swedish] | E9: 0.5938 | F9: 0 | G9: (M) | H9: length | J9: 17
B10: 7 | C10: AMP | D10: ampere electric current | E10: 1 | F10: 0 | G10: (AMP) | H10: electric | I10: x | J10: 5
B11: 8 | C11: AMU | D11: atomic mass unit (unified, physical) | E11: 1.66054021E-27 | F11: 0 | G11: (KG) | H11: mass | J11: 11
B12: 9 | C12: ANGSTROM | D12: angstrom | E12: 0.0000000001 | F12: 0 | G12: (M) | H12: length | I12: x | J12: 17
B13: 10 | C13: ARE | D13: Are, area of land | E13: 100 | F13: 0 | G13: (M^2) | H13: area | J13: 289
B14: 11 | C14: ARMLEN | D14: arms-length | E14: 0.7 | F14: 0 | G14: (M) | H14: length | J14: 17
B15: 12 | C15: ARPENT[C] | D15: arpent [Canada] | E15: 58.47 | F15: 0 | G15: (M) | H15: length | J15: 17
B16: 13 | C16: ARPENT[F] | D16: arpent [France] | E16: 58.471308 | F16: 0 | G16: (M) | H16: length | J16: 17
B17: 14 | C17: ARSHEEN | D17: arsheen [Russia] | E17: 0.7112 | F17: 0 | G17: (M) | H17: length | J17: 17
B18: 15 | C18: ARSHIN[IRAN] | D18: arshin [iran] | E18: 1.04 | F18: 0 | G18: (M) | H18: length | J18: 17
B19: 16 | C19: ARSHIN[IRAQ] | D19: arshin [iraq] | E19: 74.5 | F19: 0 | G19: (M) | H19: length | J19: 17
B20: 17 | C20: ATM | D20: atmosphere | E20: 101325 | F20: 0 | G20: (KG/(M*S^2)) | H20: pressure | I20: x | J20: 0.0006733182347
B21: 18 | C21: ATTO | D21: multiplier, 1E-18 | E21: 0.000000000000000001 | F21: 0 | G21: (ITEM) | H21: Multiplier | J21: 1
B22: 19 | C22: AU | D22: astronomical unit | E22: 149597870300 | F22: 0 | G22: (M) | H22: length | J22: 17
B23: 20 | C23: B | D23: Bel | E23: 1.15129254649702 | F23: 0 | G23: (ITEM) | H23: Multiplier | J23: 1
B24: 21 | C24: BAMBOO | D24: bamboo | E24: 3.2 | F24: 0 | G24: (M) | H24: length | J24: 17
B25: 22 | C25: BAR | D25: bar | E25: 100000 | F25: 0 | G25: (KG/(M*S^2)) | H25: pressure | I25: x | J25: 0.0006733182347
B26: 23 | C26: BARLY | D26: barlycorn | E26: 0.008467 | F26: 0 | G26: (M) | H26: length | J26: 17
B27: 24 | C27: BARN | D27: Barn, area | E27: 1E-28 | F27: 0 | G27: (M^2) | H27: area | J27: 289
B28: 25 | C28: BBL | D28: barrel, petrolium | E28: 0.1589872949 | F28: 0 | G28: (M^3) | H28: volume | J28: 4913
B29: 26 | C29: BCF | D29: billion std cu ft of gas | E29: 1195300000 | F29: 0 | G29: (MOL) | H29: quantity | J29: 19
B30: 27 | C30: BDFT | D30: board feet | E30: 0.0023597372 | F30: 0 | G30: (M^3) | H30: volume | J30: 4913
B31: 28 | C31: BEESP | D31: bee space | E31: 0.0065 | F31: 0 | G31: (M) | H31: length | J31: 17
B32: 29 | C32: BLK[E] | D32: block [East US] | E32: 80.4672 | F32: 0 | G32: (M) | H32: length | J32: 17
B33: 30 | C33: BLK[MID] | D33: block [Midwest US] | E33: 100.584 | F33: 0 | G33: (M) | H33: length | J33: 17
B34: 31 | C34: BLK[SW] | D34: block [South, West US] | E34: 160.9344 | F34: 0 | G34: (M) | H34: length | J34: 17
B35: 32 | C35: BOLT | D35: bolt of cloth | E35: 36.576 | F35: 0 | G35: (M) | H35: length | J35: 17
B36: 33 | C36: BQ | D36: Becquerel, radionuclide activity | E36: 1 | F36: 0 | G36: (ITEM/S) | H36: nuclear | J36: 0.03225806452
B37: 34 | C37: BRAC[IT] | D37: braccio [Italy] | E37: 0.7 | F37: 0 | G37: (M) | H37: length | J37: 17
B38: 35 | C38: BRAZ[A] | D38: braza [Argentina] | E38: 1.733 | F38: 0 | G38: (M) | H38: length | J38: 17
B39: 36 | C39: BRAZ[S] | D39: braza [Spain] | E39: 1.67 | F39: 0 | G39: (M) | H39: length | J39: 17
B40: 37 | C40: BRAZ[T] | D40: braza [Texas] | E40: 1.693 | F40: 0 | G40: (M) | H40: length | J40: 17
B41: 38 | C41: BTU | D41: british thermal unit | E41: 1055.055853 | F41: 0 | G41: ((KG*M^2)/S^2) | H41: energy | I41: x | J41: 3.308012487
B42: 39 | C42: BTU[MEAN] | D42: btu(mean) | E42: 1055.87 | F42: 0 | G42: ((KG*M^2)/S^2) | H42: energy | J42: 3.308012487
B43: 40 | C43: BTU[TH] | D43: btu(th) | E43: 1054.35 | F43: 0 | G43: ((KG*M^2)/S^2) | H43: energy | J43: 3.308012487
B44: 41 | C44: BUNDLE | D44: bundle, paper | E44: 1000 | F44: 0 | G44: (PP) | H44: paper
B45: 42 | C45: BUSHEL | D45: bushel (US) | E45: 0.03523907 | F45: 0 | G45: (M^3) | H45: volume | I45: x | J45: 4913
B46: 43 | C46: BUSHEL[UK] | D46: bushel(uk) | E46: 0.03636872 | F46: 0 | G46: (M^3) | H46: volume | J46: 4913
B47: 44 | C47: BUTM | D47: button measure | E47: 0.000635 | F47: 0 | G47: (M) | H47: length | J47: 17
B48: 45 | C48: DEGC | D48: degrees Celsius | E48: 1 | F48: -273.15 | G48: (DEGK) | H48: temperature | I48: x | J48: 7
B49: 46 | C49: CAB | D49: cable | E49: 182.88 | F49: 0 | G49: (M) | H49: length | J49: 17
B50: 47 | C50: CAB[UK] | D50: cable [British] | E50: 185.3184 | F50: 0 | G50: (M) | H50: length | J50: 17
B51: 48 | C51: CAB[US] | D51: cable [U.S.] | E51: 219.456 | F51: 0 | G51: (M) | H51: length | J51: 17
B52: 49 | C52: CAL | D52: calorie | E52: 4.1868 | F52: 0 | G52: ((KG*M^2)/S^2) | H52: energy | I52: x | J52: 3.308012487
B53: 50 | C53: CAL[15C] | D53: calorie(15C) | E53: 4.1858 | F53: 0 | G53: ((KG*M^2)/S^2) | H53: energy | J53: 3.308012487
B54: 51 | C54: CAL[20C] | D54: calorie(20C) | E54: =UCFactorData($B54,E$3) -> 4.1819 | F54: 0 | G54: ((KG*M^2)/S^2) | H54: energy | J54: 3.308012487
B55: 52 | C55: =UCFactorData($B55,C$3) -> CAL[MEAN] | D55: calorie(mean) | E55: 4.19002 | F55: 0 | G55: ((KG*M^2)/S^2) | H55: energy | J55: 3.308012487
B56: 53 | C56: CAL[TH] | D56: calorie(th) | E56: 4.184 | F56: 0 | G56: ((KG*M^2)/S^2) | H56: energy | J56: 3.308012487
B57: 54 | C57: CALIBER | D57: caliber | E57: 0.0254 | F57: 0 | G57: (M) | H57: length | J57: 17
B58: 55 | C58: CALORIE[FOOD] | D58: calorie(food) | E58: 4186 | F58: 0 | G58: ((KG*M^2)/S^2) | H58: energy | I58: x | J58: 3.308012487
B59: 56 | C59: CANA | D59: cana (canna, canne) | E59: 2 | F59: 0 | G59: (M) | H59: length | J59: 17
B60: 57 | C60: CAPEFT | D60: cape foot | E60: 0.314858 | F60: 0 | G60: (M) | H60: length | J60: 17
B61: 58 | C61: CAPEIN | D61: cape inch | E61: 0.0262382 | F61: 0 | G61: (M) | H61: length | J61: 17
B62: 59 | C62: CAPEROOD | D62: cape rood | E62: 3.778296 | F62: 0 | G62: (M) | H62: length | J62: 17
B63: 60 | C63: CARAT | D63: Carat | E63: 0.0002 | F63: 0 | G63: (KG) | H63: mass | I63: x | J63: 11
B64: 61 | C64: CASE[P] | D64: case, paper | E64: 4000 | F64: 0 | G64: (PP) | H64: paper
B65: 62 | C65: CBLK[EUS] | D65: city block [East U.S.] | E65: 80.4672 | F65: 0 | G65: (M) | H65: length | J65: 17
B66: 63 | C66: CBLK[M] | D66: city block [Midwest U.S.] | E66: 100.584 | F66: 0 | G66: (M) | H66: length | J66: 17
B67: 64 | C67: CBLK[SW] | D67: city block [South, West U.S.] | E67: 160.9344 | F67: 0 | G67: (M) | H67: length | J67: 17
B68: 65 | C68: CC | D68: cubic centimeters | E68: 0.000001 | F68: 0 | G68: (M^3) | H68: volume | I68: x | J68: 4913
B69: 66 | C69: CD | D69: Candlela, luminous intensity | E69: 1 | F69: 0 | G69: =UCFactorData($B69,G$3) -> (CD) | H69: luminesence | I69: x | J69: =UCchkval(G69) -> 13
B70: 67 | C70: CENT[HEAT] | D70: centigrade heat | E70: 1900.4 | F70: 0 | G70: ((KG*M^2)/S^2) | H70: energy | J70: 3.308012487
B71: 68 | C71: CENTAL | D71: cental | E71: 45.359237 | F71: 0 | G71: (KG) | H71: mass | J71: 11
B72: 69 | C72: CENTI | D72: multiplier, 1E-2 | E72: 0.01 | F72: 0 | G72: (ITEM) | H72: Multiplier | I72: x | J72: 1
B73: 70 | C73: CHAIN | D73: chain [Gunter, survey] | E73: 20.1168402 | F73: 0 | G73: (M) | H73: length | I73: x | J73: 17
B74: 71 | C74: CHAIN[RAM] | D74: chain [Ramsden, engineer] | E74: 30.48 | F74: 0 | G74: (M) | H74: length | J74: 17
B75: 72 | C75: CHAIN[SUR] | D75: chain (surveyor) | E75: 20.11684 | F75: 0 | G75: (M) | H75: length | J75: 17
B76: 73 | C76: CHIH | D76: ch'ih [China] | E76: 0.35814 | F76: 0 | G76: (M) | H76: length | J76: 17
B77: 74 | C77: CIRCLE | D77: full circle | E77: 6.2831853071796 | F77: 0 | G77: (M/M) | H77: angle | I77: x | J77: 1
B78: 75 | C78: CLICK | D78: click [U.S. military] | E78: 1000 | F78: 0 | G78: (M) | H78: length | J78: 17
B79: 76 | C79: CM | D79: centimeter | E79: 0.01 | F79: 0 | G79: (M) | H79: length | I79: x | J79: 17
B80: 77 | C80: CM[H2O] | D80: cm water | E80: 98.0665 | F80: 0 | G80: (KG/(M*S^2)) | H80: pressure | J80: 0.0006733182347
B81: 78 | C81: CM[HG] | D81: cm mercury | E81: 1333.22 | F81: 0 | G81: (KG/(M*S^2)) | H81: pressure | J81: 0.0006733182347
B82: 79 | C82: CORD | D82: Cord | E82: 3.6245734 | F82: 0 | G82: (M^3) | H82: volume | J82: 4913
B83: 80 | C83: CORDFT | D83: Cord foot | E83: 0.453072263900146 | F83: 0 | G83: (M^3) | H83: volume | J83: 4913
B84: 81 | C84: COULOMB | D84: Charge, quantity of electricity | E84: 1 | F84: 0 | G84: (AMP*S) | H84: electric | I84: x | J84: 155
B85: 82 | C85: CP | D85: centipoise, viscocity | E85: 0.001 | F85: 0 | G85: (KG/(M*S)) | H85: viscocity | I85: x | J85: 0.02087286528
B86: 83 | C86: CST | D86: centistoke | E86: 0.000001 | F86: 0 | G86: (M^2/S) | H86: viscocity | I86: x | J86: 9.322580645
B87: 84 | C87: CUADRA | D87: cuadra | E87: 84 | F87: 0 | G87: (M) | H87: length | J87: 17
B88: 85 | C88: CUADRA[A] | D88: cuadra [Argentina] | E88: 130 | F88: 0 | G88: (M) | H88: length | J88: 17
B89: 86 | C89: CUBIT | D89: cubit | E89: 0.4572 | F89: 0 | G89: (M) | H89: length | J89: 17
B90: 87 | C90: CUBIT[EG] | D90: cubit [Egyption] | E90: 0.45 | F90: 0 | G90: (M) | H90: length | J90: 17
B91: 88 | C91: CUBIT[RE] | D91: cubit [Royal Egyptian] | E91: 0.5235 | F91: 0 | G91: (M) | H91: length | J91: 17
B92: 89 | C92: CUBIT[ROME] | D92: cubit [Roman] | E92: 0.444 | F92: 0 | G92: (M) | H92: length | J92: 17
B93: 90 | C93: CUERDA | D93: cuerda | E93: 21 | F93: 0 | G93: (M) | H93: length | J93: 17
B94: 91 | C94: CUP | D94: cup | E94: 0.000236588 | F94: 0 | G94: (M^3) | H94: volume | I94: x | J94: 4913
B95: 92 | C95: CURIE | D95: Curie, radionuclide activity | E95: 37000000000 | F95: 0 | G95: (ITEM/S) | H95: nuclear | J95: 0.03225806452
B96: 93 | C96: CYCLE | D96: revolution | E96: 6.2831853071796 | F96: 0 | G96: (M/M) | H96: =UCFactorData($B96,H$3) -> angle | I96: x | J96: 1
B97: 94 | C97: DAM | D97: Dam, length | E97: 10 | F97: 0 | G97: (M) | H97: length | J97: 17
B98: 95 | C98: DARCY | D98: darcy | E98: 9.869233E-13 | F98: 0 | G98: (M^2) | H98: area | J98: 289
B99: 96 | C99: DAY | D99: day (mean Earth) | E99: 86400 | F99: 0 | G99: (S) | H99: time | I99: x | J99: 31
B100: 97 | C100: DECI | D100: multiplier, 1E-1 | E100: 0.1 | F100: 0 | G100: (ITEM) | H100: Multiplier | I100: x | J100: 1
B101: 98 | C101: DEG | D101: degrees | E101: 0.0174532925199433 | F101: 0 | G101: (M/M) | H101: angle | I101: x | J101: 1
B102: 99 | C102: DEKA | D102: multiplier, 1E1 | E102: 10 | F102: 0 | G102: (ITEM) | H102: Multiplier | I102: x | J102: 1
B103: 100 | C103: DIDOT | D103: didot point | E103: 0.000377 | F103: 0 | G103: (M) | H103: length | J103: 17
B104: 101 | C104: DIGIT | D104: digit | E104: 0.019 | F104: 0 | G104: (M) | H104: length | J104: 17
B105: 102 | C105: DIRAA[E] | D105: diraa [Egypt] | E105: 0.58 | F105: 0 | G105: (M) | H105: length | J105: 17
B106: 103 | C106: DONG[V] | D106: dong [Vietnam] | E106: 0.0233333 | F106: 0 | G106: (M) | H106: length | J106: 17
B107: 104 | C107: DOUZ[P] | D107: douzième [print] | E107: 0.0001764 | F107: 0 | G107: (M) | H107: length | J107: 17
B108: 105 | C108: DOUZ[W] | D108: douzième [watchmaking] | E108: 0.000188 | F108: 0 | G108: (M) | H108: length | J108: 17
B109: 106 | C109: DRA[IRAQ] | D109: dra [Iraq] | E109: 0.745 | F109: 0 | G109: (M) | H109: length | J109: 17
B110: 107 | C110: DRA[RUS] | D110: dra [Russia] | E110: 0.7112 | F110: 0 | G110: (M) | H110: length | J110: 17
B111: 108 | C111: DRAM | D111: Dram, fluid capacity or volume | E111: 3.696691E-6 | F111: 0 | G111: (M^3) | H111: volume | J111: 4913
B112: 109 | C112: DRAM[AV] | D112: Dram (avoirdupois) | E112: .0017718452 | F112: 0 | G112: (KG) | H112: mass | J112: 11
B113: 110 | C113: DYNE | D113: dyne | E113: 0.00001 | F113: 0 | G113: ((KG*M)/S^2) | H113: force | I113: x | J113: 0.1945889698
B114: 111 | C114: EC | D114: e, Elementary Charge, electron | E114: 1.6021892E-19 | F114: 0 | G114: (AMP*S) | H114: constant | J114: 155
B115: 112 | C115: EARTHMASS | D115: earth mass | E115: 5.98E+24 | F115: 0 | G115: (KG) | H115: mass | J115: 11
B116: 113 | C116: EARTHMDM | D116: Earth Magnetic dipole moment | E116: 8.1E+22 | F116: 0 | G116: (AMP*M^2) | H116: constant | J116: 1445
B117: 114 | C117: EARTHMF | D117: Earth magnetic field | E117: 0.000057 | F117: 0 | G117: (KG/(AMP*S^2)) | H117: constant | J117: 0.002289281998
B118: 115 | C118: EARTHRE | D118: Radius of Earth, equator | E118: 6378000 | F118: 0 | G118: (M) | H118: constant | J118: 17
B119: 116 | C119: =UCFactorData($B119,C$3) -> EARTHRM | D119: Radius of Earth, mean | E119: 6370000 | F119: 0 | G119: (M) | H119: constant | J119: 17
B120: 117 | C120: EARTHRP | D120: Radius of Earth, poles | E120: 6357000 | F120: 0 | G120: (M) | H120: constant | J120: 17
B121: 118 | C121: EARTHSR | D121: Solar radiation on Earth | E121: 1340 | F121: 0 | G121: ((KG*M^2/S^3)/M^2) | H121: constant | J121: 0.0003692390319
B122: 119 | C122: EL[D] | D122: el [Dutch] | E122: 0.69 | F122: 0 | G122: (M) | H122: length | J122: 17
B123: 120 | C123: ELL[ENG] | D123: ell [English] | E123: 1.143 | F123: 0 | G123: (M) | H123: length | J123: 17
B124: 121 | C124: ELL[S] | D124: ell [Scotland] | E124: 0.945 | F124: 0 | G124: (M) | H124: length | J124: 17
B125: 122 | C125: ELLE[G] | D125: elle [Germany] | E125: 0.6 | F125: 0 | G125: (M) | H125: length | J125: 17
B126: 123 | C126: ELLE[V] | D126: elle [Vienna] | E126: 0.7793 | F126: 0 | G126: (M) | H126: length | J126: 17
B127: 124 | C127: ELLS[UK] | D127: ells (UK) | E127: 0.875 | F127: 0 | G127: (M) | H127: length | J127: 17
B128: 125 | C128: EM | D128: em | E128: 0.0042175 | F128: 0 | G128: (M) | H128: length | J128: 17
B129: 126 | C129: EMS | D129: ems (pica) | E129: 0.004233 | F129: 0 | G129: (M) | H129: length | J129: 17
B130: 127 | C130: EPSILON | D130: Epsilon0, Permittivity | E130: 8.854187818E-12 | F130: 0 | G130: ((AMP^2*S^4/(KG*M^2))/M) | H130: constant | J130: 427.2158281
B131: 128 | C131: ERG | D131: erg | E131: 0.0000001 | F131: 0 | G131: ((KG*M^2)/S^2) | H131: energy | J131: 3.308012487
B132: 129 | C132: ESTADO[P] | D132: estadio [Portugal] | E132: 261 | F132: 0 | G132: (M) | H132: length | J132: 17
B133: 130 | C133: ESTADO[S] | D133: estadio [Spain] | E133: 174 | F133: 0 | G133: (M) | H133: length | J133: =UCchkval(G133) -> 17
B134: 131 | C134: EV | D134: Electron volt | E134: 1.6E-19 | F134: 0 | G134: ((KG*M^2)/S^2) | H134: energy | I134: x | J134: 3.308012487
B135: 132 | C135: EXA | D135: multiplier, 1E18 | E135: 1000000000000000000 | F135: 0 | G135: (ITEM) | H135: Multiplier | J135: 1
B136: 133 | C136: DEGF | D136: degrees Farenheight | E136: 0.555555555555556 | F136: -459.67 | G136: (DEGK) | H136: temperature | I136: x | J136: 7
B137: 134 | C137: F[16] | D137: Fraction, 1/16, sixteenth | E137: 0.0625 | F137: 0 | G137: (ITEM) | H137: Multiplier | I137: x | J137: 1
B138: 135 | C138: F[2] | D138: Fraction, 1/2, half | E138: 0.5 | F138: 0 | G138: (ITEM) | H138: Multiplier | I138: x | J138: 1
B139: 136 | C139: F[32] | D139: Fraction, 1/32, thirtysecond | E139: =UCFactorData($B139,E$3) -> 0.03125 | F139: 0 | G139: (ITEM) | H139: Multiplier | I139: x | J139: 1
B140: 137 | C140: F[4] | D140: Fraction, 1/4, quarter or fourth | E140: 0.25 | F140: 0 | G140: (ITEM) | H140: Multiplier | I140: x | J140: 1
B141: 138 | C141: F[64] | D141: Fraction, 1/64, sixtyfourth | E141: 0.015625 | F141: 0 | G141: (ITEM) | H141: Multiplier | I141: x | J141: 1
B142: 139 | C142: F[8] | D142: Fraction, 1/8, eighth | E142: 0.125 | F142: 0 | G142: (ITEM) | H142: Multiplier | I142: x | J142: 1
B143: 140 | C143: FADEN[A] | D143: faden [Austria] | E143: 1.8965 | F143: 0 | G143: (M) | H143: length | J143: 17
B144: 141 | C144: FADEN[S] | D144: faden [Switzerland] | E144: 1.8 | F144: 0 | G144: (M) | H144: length | J144: 17
B145: 142 | C145: FALL[ENG] | D145: fall [English] | E145: 6.858 | F145: 0 | G145: (M) | H145: length | J145: 17
B146: 143 | C146: FALL[S] | D146: fall [Scotland] | E146: 5.67 | F146: 0 | G146: (M) | H146: length | J146: 17
B147: 144 | C147: FARAD | D147: capacitance, electrical | E147: 1 | F147: 0 | G147: ((AMP^2*S^4)/(KG*M^2)) | H147: electric | J147: 7262.669078
B148: 145 | C148: FATHOM | D148: fathom | E148: 1.8288 | F148: 0 | G148: (M) | H148: length | I148: x | J148: 17
B149: 146 | C149: FATHOM[A] | D149: fathom [ancient] | E149: 1.829 | F149: 0 | G149: (M) | H149: length | J149: 17
B150: 147 | C150: FAUST[H] | D150: faust [Hungary] | E150: 0.10536 | F150: 0 | G150: (M) | H150: length | J150: 17
B151: 148 | C151: FC | D151: Fc, Faraday constant | E151: 96484.56 | F151: 0 | G151: ((AMP*S)/(MOL)) | H151: constant | J151: 8.157894737
B152: 149 | C152: FEMTO | D152: multiplier, 1E-15 | E152: 0.000000000000001 | F152: 0 | G152: (ITEM) | H152: Multiplier | J152: 1
B153: 150 | C153: FINBRTH | D153: fingerbreadth | E153: 0.01905 | F153: 0 | G153: (M) | H153: length | J153: 17
B154: 151 | C154: FINGER | D154: finger | E154: 0.1143 | F154: 0 | G154: (M) | H154: length | J154: 17
B155: 152 | C155: FIST | D155: fist | E155: 0.1 | F155: 0 | G155: (M) | H155: length | J155: 17
B156: 153 | C156: FLOZ | D156: Fluid Ounce | E156: 0.00002957373 | F156: 0 | G156: (M^3) | H156: volume | I156: x | J156: 4913
B157: 154 | C157: FLOZ[UK] | D157: floz(uk) | E157: 0.000028413 | F157: 0 | G157: (M^3) | H157: volume | J157: 4913
B158: 155 | C158: FOD | D158: fod | E158: 0.3141 | F158: 0 | G158: (M) | H158: length | J158: 17
B159: 156 | C159: FT | D159: feet | E159: 0.304800609601219 | F159: 0 | G159: (M) | H159: length | I159: x | J159: 17
B160: 157 | C160: FT[CHINA] | D160: chinese foot | E160: 0.371475 | F160: 0 | G160: (M) | H160: length | J160: 17
B161: 158 | C161: FT[CPRE] | D161: feet [pre-1963 Canada] | E161: 0.325 | F161: 0 | G161: (M) | H161: length | J161: 17
B162: 159 | C162: FT[E] | D162: feet [Egypt] | E162: 0.36 | F162: 0 | G162: (M) | H162: length | J162: 17
B163: 160 | C163: FT[F] | D163: feet [France] | E163: 0.3248406 | F163: 0 | G163: (M) | H163: length | J163: 17
B164: 161 | C164: FT[H2O] | D164: foot of water | E164: 2988.98 | F164: 0 | G164: (KG/(M*S^2)) | H164: pressure | I164: x | J164: 0.0006733182347
B165: 162 | C165: FT[IRAQ] | D165: feet [iraq] | E165: 0.316 | F165: 0 | G165: (M) | H165: length | J165: 17
B166: 163 | C166: FT[N] | D166: feet [Netherlands] | E166: 0.28313 | F166: 0 | G166: (M) | H166: length | J166: 17
B167: 164 | C167: FT[ROME] | D167: feet [Rome] | E167: 0.296 | F167: 0 | G167: (M) | H167: length | J167: 17
B168: 165 | C168: FT[SURV] | D168: feet [survey] | E168: 0.3048006 | F168: 0 | G168: (M) | H168: length | J168: 17
B169: 166 | C169: FT[US] | D169: feet [international, U.S.] | E169: 0.3048 | F169: 0 | G169: (M) | H169: length | J169: 17
B170: 167 | C170: FT[USSURV] | D170: ft (us survey) | E170: 0.304801 | F170: 0 | G170: (M) | H170: length | J170: 17
B171: 168 | C171: FTBFLD[C] | D171: football field [Canada] | E171: 100.584 | F171: 0 | G171: (M) | H171: length | J171: 17
B172: 169 | C172: FTBFLD[US] | D172: football field [U.S.] | E172: 91.44 | F172: 0 | G172: (M) | H172: length | J172: 17
B173: 170 | C173: FTBFLD[USC] | D173: football field [U.S., complete] | E173: 109.728 | F173: 0 | G173: (M) | H173: length | J173: 17
B174: 171 | C174: FTCANDLE | D174: Foot-Candle | E174: 10.76391 | F174: 0 | G174: =UCFactorData($B174,G$3) -> (((M^2/M^2)*CD)/M^2) | H174: luminesence | I174: x | J174: 0.04498269896
B175: 172 | C175: FTPOUNDAL | D175: ft poundal | E175: 0.04214 | F175: 0 | G175: ((KG*M^2)/S^2) | H175: energy | J175: 3.308012487
B176: 173 | C176: FURLONG | D176: furlong | E176: 201.168 | F176: 0 | G176: (M) | H176: length | I176: x | J176: 17
B177: 174 | C177: FURLONG[S] | D177: furlong [survey] | E177: 201.1684023 | F177: 0 | G177: (M) | H177: length | J177: 17
B178: 175 | C178: FUSS[G] | D178: fuss [German] | E178: 0.31608 | F178: 0 | G178: (M) | H178: length | J178: 17
B179: 176 | C179: G | D179: gravity acceleration | E179: 9.80665 | F179: 0 | G179: (M/S^2) | H179: constant | I179: x | J179: 0.01768990635
B180: 177 | C180: GAL | D180: gallon (us liquid) | E180: 0.003785411784 | F180: 0 | G180: (M^3) | H180: volume | I180: x | J180: 4913
B181: 178 | C181: GAL[USDRY] | D181: gal(us dry) | E181: 0.004404884 | F181: 0 | G181: (M^3) | H181: =UCFactorData($B181,H$3) -> volume | I181: x | J181: 4913
B182: 179 | C182: GALUK | D182: gallon (uk) | E182: 0.004546087 | F182: 0 | G182: (M^3) | H182: volume | J182: 4913
B183: 180 | C183: =UCFactorData($B183,C$3) -> GAUSS | D183: Magnetic flux density | E183: 0.0001 | F183: 0 | G183: (KG/(AMP*S^2)) | H183: magnetic | J183: 0.002289281998
B184: 181 | C184: GC | D184: Gravity Correction Factor | E184: 1 | F184: 0 | G184: (KG*M/(((KG*M)/S^2)*S^2)) | H184: constant | J184: 1
B185: 182 | C185: GIGA | D185: multiplier, 1E9 | E185: 1000000000 | F185: 0 | G185: (ITEM) | H185: Multiplier | I185: x | J185: 1
B186: 183 | C186: GILL | D186: Gill | E186: 0.00011829492 | F186: 0 | G186: (M^3) | H186: volume | J186: 4913
B187: 184 | C187: GM | D187: gram | E187: 0.001 | F187: 0 | G187: (KG) | H187: mass | I187: x | J187: 11
B188: 185 | C188: GNATEYE | D188: gnat's eye | E188: 0.000125 | F188: 0 | G188: (M) | H188: length | J188: 17
B189: 186 | C189: GOAD | D189: goad | E189: 1.3716 | F189: 0 | G189: (M) | H189: length | J189: 17
B190: 187 | C190: GRAIN | D190: grains | E190: 0.00006479891 | F190: 0 | G190: (KG) | H190: mass | J190: 11
B191: 188 | C191: GRAV | D191: Gravity constant | E191: 0.00000000006672 | F191: 0 | G191: (M^3/(S^2*KG)) | H191: constant | J191: 0.4647620849
B192: 189 | C192: GRAY | D192: Absorbed dose, specific energy, kerma | E192: 1 | F192: 0 | G192: (M^2/S^2) | H192: nuclear | J192: 0.3007284079
B193: 190 | C193: GROSS | D193: 12 dozen, 144 | E193: 144 | F193: 0 | G193: (ITEM) | H193: Multiplier | I193: x | J193: 1
B194: 191 | C194: GRY | D194: gry | E194: 0.0002117 | F194: 0 | G194: (M) | H194: length | J194: 17
B195: 192 | C195: H | D195: h, Planck constant | E195: 6.626176E-34 | F195: 0 | G195: (KG*M^2/S) | H195: constant | J195: 102.5483871
B196: 193 | C196: HAIRBRDTH | D196: hair's breadth | E196: 0.0001 | F196: 0 | G196: (M) | H196: length | J196: 17
B197: 194 | C197: HAND | D197: hand | E197: 0.1016 | F197: 0 | G197: (M) | H197: length | J197: =UCchkval(G197) -> 17
B198: 195 | C198: HAND[NONE] | D198: hand [non-equine] | E198: 0.1016 | F198: 0 | G198: (M) | H198: length | J198: 17
B199: 196 | C199: HANDBRTH | D199: handbreadth | E199: 0.08 | F199: 0 | G199: (M) | H199: length | J199: 17
B200: 197 | C200: HAT[C] | D200: hat [Cambodia] | E200: 0.5 | F200: 0 | G200: (M) | H200: length | J200: 17
... 988 more rows

Sheet Data
A1: =Intro!H1 -> VVES
A2: Analysis - FreeStyle Spreadsheet
A3: MJ Van Voorhis 2/11/2016, 8/25/16
B5: Parameter | C5: Value | D5: Unit | E5: Comment | F5: BaseVal | G5: BaseUnit | H5: ChkVal | I5: Text
B7: Ambient Pressure (absolute) = | C7: 1 | D7: (atm) | E7: input value | F7: =CVBaseVal(C7,D7) -> 101325 | G7: =CVBaseUnit(D7) -> ((KG/(M*S^2))) | H7: =UCchkval(D7) -> 0.0006733182347 | I7: =B7&" "&TEXT(C7,"0.00")&" "&D7 -> Ambient Pressure (absolute) = 1.00 (atm)
B8: Pressure (gage) = | C8: 1180 | D8: (psi) | E8: input value | F8: =CVBaseVal(C8,D8) -> 8135813.606 | G8: =CVBaseUnit(D8) -> ((KG/(M*S^2))) | H8: =UCchkval(D8) -> 0.0006733182347 | I8: =B8&" "&TEXT(C8,"0")&" "&D8 -> Pressure (gage) = 1180 (psi)
B9: O.D. = | C9: 24 | D9: (in) | E9: input value | F9: =CVBaseVal(C9,D9) -> 0.6096 | G9: =CVBaseUnit(D9) -> ((M)) | H9: =UCchkval(D9) -> 17
B10: Pressure (absolute) = | C10: =cvval(F10,G10,D10) -> 1194.695949 | D10: (psi) | E10: =F7+F8 | F10: =F7+F8 -> 8237138.606 | G10: =IF(AND(H7=H8,H8=H10), CVBaseUnit(D10), NA()) -> ((KG/(M*S^2))) | H10: =UCchkval(D10) -> 0.0006733182347 | I10: =B10&" "&TEXT(C10,"0.00E+00")&" "&D10 -> Pressure (absolute) = 1.19E+03 (psi)
B12: Diameter1 = | C12: 6.4 | D12: (in) | E12: input value | F12: =CVBaseVal(C12,D12) -> 0.16256 | G12: =CVBaseUnit(D12) -> ((M)) | H12: =UCchkval(D12) -> 17 | I12: =B12&" "&TEXT(C12,"0.0")&" "&D12 -> Diameter1 = 6.4 (in)
B13: Diameter2 = | C13: 0 | D13: (in) | E13: input value | F13: =CVBaseVal(C13,D13) -> 0 | G13: =CVBaseUnit(D13) -> ((M)) | H13: =UCchkval(D13) -> 17 | I13: =B13&" "&TEXT(C13,"0.0")&" "&D13 -> Diameter2 = 0.0 (in)
B15: Net Area = | C15: =cvval(F15,G15,D15) -> 32.16990877 | D15: (in^2) | E15: =PI()/4*(F12^2-F13^2) | F15: =PI()/4*(F12^2-F13^2) -> 0.02075473834 | G15: =IF(AND((H12^2=H13^2),(H13^2)=H15), CVBaseUnit(D15), NA()) -> ((M)^2) | H15: =UCchkval(D15) -> 289 | I15: =B15&" "&TEXT(C15,"0.00E+00")&" "&D15 -> Net Area = 3.22E+01 (in^2)
B16: O.D. Area = | C16: =cvval(F16,G16,D16) -> 452.3893421 | D16: (in^2) | E16: =PI()/4*F9^2 | F16: =PI()/4*F9^2 -> 0.291863508 | G16: =IF(AND(H9^2=H16), CVBaseUnit(D16), NA()) -> ((M)^2) | H16: =UCchkval(D16) -> 289
B17: Mass-i = | C17: 1500 | D17: (lbm) | E17: input value | F17: =CVBaseVal(C17,D17) -> 680.388555 | G17: =CVBaseUnit(D17) -> ((KG)) | H17: =UCchkval(D17) -> 11 | I17: =B17&" "&TEXT(C17,"0.0")&" "&D17 -> Mass-i = 1500.0 (lbm)
B18: Mass-f = | C18: 0 | D18: (lbm) | E18: input value | F18: =CVBaseVal(C18,D18) -> 0 | G18: =CVBaseUnit(D18) -> ((KG)) | H18: =UCchkval(D18) -> 11 | I18: =B18&" "&TEXT(C18,"0.0")&" "&D18 -> Mass-f = 0.0 (lbm)
B20: Mass Change = | C20: =cvval(F20,G20,D20) -> 1500 | D20: (lbm) | E20: =F17-F18 | F20: =F17-F18 -> 680.388555 | G20: =IF(AND(H17=H18,H18=H20), CVBaseUnit(D20), NA()) -> ((KG)) | H20: =UCchkval(D20) -> 11 | I20: =B20&" "&TEXT(C20,"0.00E+00")&" "&D20 -> Mass Change = 1.50E+03 (lbm)
B22: Time = | C22: 6 | D22: (s) | E22: input value | F22: =CVBaseVal(C22,D22) -> 6 | G22: =CVBaseUnit(D22) -> ((S)) | H22: =UCchkval(D22) -> 31 | I22: =B22&" "&TEXT(C22,"0.0")&" "&D22 -> Time = 6.0 (s)
B24: M-dot_p = | C24: =cvval(F24,G24,D24) -> 250 | D24: (lbm/s) | E24: =F20/F22 | F24: =F20/F22 -> 113.3980925 | G24: =IF(AND(H20/H22=H24), CVBaseUnit(D24), NA()) -> ((KG)/(S)) | H24: =UCchkval(D24) -> 0.3548387097 | I24: =B24&" "&TEXT(C24,"0.00E+00")&" "&D24 -> M-dot_p = 2.50E+02 (lbm/s)
B26: Pressure Thrust = | C26: =cvval(F26,G26,D26) -> 37960.49183 | D26: (lbf) | E26: =F8*F15 | F26: =F8*F15 -> 168856.6826 | G26: =IF(AND(H8*H15=H26), CVBaseUnit(D26), NA()) -> (((KG*M)/S^2)) | H26: =UCchkval(D26) -> 0.1945889698 | I26: =B26&" "&TEXT(C26,"0.00E+00")&" "&D26 -> Pressure Thrust = 3.80E+04 (lbf)
B28: Characteristic Velocity, V0 = | C28: =247*32.2 -> 7953.4 | D28: (ft/s) | E28: input value | F28: =CVBaseVal(C28,D28) -> 2424.201168 | G28: =CVBaseUnit(D28) -> ((M)/(S)) | H28: =UCchkval(D28) -> 0.5483870968 | I28: =B28&" "&TEXT(C28,"0.0")&" "&D28 -> Characteristic Velocity, V0 = 7953.4 (ft/s)
B29: Efficiency = | C29: 60 | D29: (centi) | E29: input value | F29: =CVBaseVal(C29,D29) -> 0.6 | G29: =CVBaseUnit(D29) -> ((ITEM)) | H29: =UCchkval(D29) -> 1 | I29: =B29&" "&TEXT(C29,"0.0")&" "&D29 -> Efficiency = 60.0 (centi)
B30: Jet Thrust = | C30: =cvval(F30,G30,D30) -> 37079.95801 | D30: (lbf) | E30: =F29*F24*F28 | F30: =F29*F24*F28 -> 164939.873 | G30: =IF(AND(H29*H24*H28=H30), CVBaseUnit(D30), NA()) -> (((KG*M)/S^2)) | H30: =UCchkval(D30) -> 0.1945889698 | I30: =B30&" "&TEXT(C30,"0.00E+00")&" "&D30 -> Jet Thrust = 3.71E+04 (lbf)
B31: Thrust = | C31: =cvval(F31,G31,D31) -> 75040.44984 | D31: (lbf) | E31: =F30+F26 | F31: =F30+F26 -> 333796.5556 | G31: =IF(AND(H30+H26,H26=H31), CVBaseUnit(D31), NA()) -> (((KG*M)/S^2)) | H31: =UCchkval(D31) -> 0.1945889698 | I31: =B31&" "&TEXT(C31,"0.00E+00")&" "&D31 -> Thrust = 7.50E+04 (lbf)
B35: CALCULATION OF REYNOLD NUMBER
B36: TYLER HICKS: PAGE 1-212
B37: Parameter | C37: Value | D37: Unit | E37: Comment | F37: BaseVal | G37: BaseUnit | H37: ChkVal | I37: text
B39: Flow RATE = | C39: 42 | D39: (gal/min) | E39: input value | F39: =CVBaseVal(C39,D39) -> 0.002649788249 | G39: =CVBaseUnit(D39) -> ((M^3)/(S)) | H39: =UCchkval(D39) -> 158.483871 | I39: =B39&" "&TEXT(C39,"0.0")&" "&D39 -> Flow RATE = 42.0 (gal/min)
B40: Pipe SIZE = | C40: 0.987 | D40: (in) | E40: input value | F40: =CVBaseVal(C40,D40) -> 0.0250698 | G40: =CVBaseUnit(D40) -> ((M)) | H40: =UCchkval(D40) -> 17 | I40: =B40&" "&TEXT(C40,"0.00")&" "&D40 -> Pipe SIZE = 0.99 (in)
B42: Flow AREA = | C42: =cvval(F42,G42,D42) -> 0.7651105434 | D42: (in^2) | E42: =PI()/4*SIZE^2 | F42: =PI()/4*SIZE^2 -> 0.0004936187182 | G42: =IF(H40^2=H42, CVBaseUnit(D42), NA()) -> ((M)^2) | H42: =UCchkval(D42) -> 289 | I42: =B42&" "&TEXT(C42,"0.00E+00")&" "&D42 -> Flow AREA = 7.65E-01 (in^2)
B43: Flow VELOCITY = | C43: =cvval(F43,G43,D43) -> 17.61179893 | D43: (ft/s) | E43: =RATE/AREA | F43: =RATE/AREA -> 5.36808705 | G43: =IF(H39/H42=H43, CVBaseUnit(D43), NA()) -> ((M)/(S)) | H43: =UCchkval(D43) -> 0.5483870968 | I43: =B43&" "&TEXT(C43,"0.00E+00")&" "&D43 -> Flow VELOCITY = 1.76E+01 (ft/s)
B45: Dynamic Viscosity, DYNVISC = | C45: 1.004 | D45: (cP) | E45: input value, Crude oil | F45: =CVBaseVal(C45,D45) -> 0.001004 | G45: =CVBaseUnit(D45) -> ((KG/(M*S))) | H45: =UCchkval(D45) -> 0.02087286528 | I45: =B45&" "&TEXT(C45,"0.00")&" "&D45 -> Dynamic Viscosity, DYNVISC = 1.00 (cP)
B46: Density, RHO = | C46: 998 | D46: (kg/m^3) | E46: input value, Crude oil | F46: =CVBaseVal(C46,D46) -> 998 | G46: =CVBaseUnit(D46) -> ((KG)/(M)^3) | H46: =UCchkval(D46) -> 0.002238957867 | I46: =B46&" "&TEXT(C46,"0")&" "&D46 -> Density, RHO = 998 (kg/m^3)
B48: Kinematic Viscosity = | C48: =cvval(F48,G48,D48) -> 1.082857999e-05 | D48: (FT^2/s) | E48: =DYNVISC/RHO | F48: =DYNVISC/RHO -> 1.006012024e-06 | G48: =IF(H45/H46=H48, CVBaseUnit(D48), NA()) -> ((M)^2/(S)) | H48: =UCchkval(D48) -> 9.322580645 | I48: =B48&" "&TEXT(C48,"0.00E+00")&" "&D48 -> Kinematic Viscosity = 1.08E-05 (FT^2/s)
B49: Reynold Number = | C49: =cvval(F49,G49,D49) -> 133772.6245 | D49: (~) | E49: =SIZE * VELOCITY * RHO / DYNVISC | F49: =SIZE * VELOCITY * RHO / DYNVISC -> 133772.6245 | G49: =IF(H40 * H43 * H46 / H45=H49, CVBaseUnit(D49), NA()) -> ((ITEM)) | H49: =UCchkval(D49) -> 1 | I49: =B49&" "&TEXT(C49,"0.00E+00")&" "&D49 -> Reynold Number = 1.34E+05 (~)
B50: Flow State: | C50: =IF(F49<2000,"laminar",IF(F49>4000,"turbulent","undefined")) -> turbulent | D50: =IF(F28<2000,"laminar",IF(F28>4000,"turbulent","undefined")) | I50: =B50&" "&C50 -> Flow State: turbulent
B53: =CELL("filename") -> C:\Users\Owner\Desktop\[FreeStyle.xlsm]Intro
B56: Parameter | C56: Value | D56: Unit | E56: Comment | F56: BaseVal | G56: BaseUnit | H56: ChkVal | I56: text
B57: Flow Rate, Q = | C57: 8000 | D57: ft^3/min | E57: input value, ARMD P&ID | F57: =CVBaseVal(C57,D57) -> 3.775602199 | G57: =CVBaseUnit(D57) -> (M)^3/(S) | H57: =UCchkval(D57) -> 158.483871 | I57: =B57&" "&TEXT(C57,"0.00")&" "&D57 -> Flow Rate, Q = 8000.00 ft^3/min
B58: Specific Weight, w = | C58: 0.071 | D58: lbm/ft^3 | E58: input value, Air | F58: =CVBaseVal(C58,D58) -> 1.137304076 | G58: =CVBaseUnit(D58) -> (KG)/(M)^3 | H58: 0.002238957867 | I58: =B58&" "&TEXT(C58,"0.00")&" "&D58 -> Specific Weight, w = 0.07 lbm/ft^3
B59: Inlet diameter, di = | C59: 18 | D59: in | E59: input value, 15813-320-01 | F59: =CVBaseVal(C59,D59) -> 0.4572 | G59: =CVBaseUnit(D59) -> (M) | H59: 17 | I59: =B59&" "&TEXT(C59,"0.00")&" "&D59 -> Inlet diameter, di = 18.00 in
B60: Outlet diameter, do = | C60: 18 | D60: in | E60: input value, 15813-320-01 | F60: =CVBaseVal(C60,D60) -> 0.4572 | G60: =CVBaseUnit(D60) -> (M) | H60: 17 | I60: =B60&" "&TEXT(C60,"0.00")&" "&D60 -> Outlet diameter, do = 18.00 in
B61: Inlet velocity magnitude, V1 = | C61: =cvval(F61,G61,D61) -> 4527.092045 | D61: ft/min | E61: =F57/(PI()/4*F59^2) | F61: =F57/(PI()/4*F59^2) -> 22.99767358 | G61: =IF(AND(H57/(H59^2)=H61), CVBaseUnit(D61), NA()) -> (M)/(S) | H61: 0.5483870968 | I61: =B61&" "&TEXT(C61,"0.00E+00")&" "&D61 -> Inlet velocity magnitude, V1 = 4.53E+03 ft/min
B62: Outlet velocity magnitude, V2 = | C62: =cvval(F62,G62,D62) -> 4527.092045 | D62: ft/min | E62: =F57/(PI()/4*F60^2) | F62: =F57/(PI()/4*F60^2) -> 22.99767358 | G62: =IF(AND(H57/(H60^2)=H62), CVBaseUnit(D62), NA()) -> (M)/(S) | H62: 0.5483870968 | I62: =B62&" "&TEXT(C62,"0.00E+00")&" "&D62 -> Outlet velocity magnitude, V2 = 4.53E+03 ft/min
B64: Velocity, inlet-x, Vx1 = | C64: =-4527 -> -4527 | D64: ft/min | E64: input value | F64: =CVBaseVal(C64,D64) -> -22.99720599 | G64: =CVBaseUnit(D64) -> (M)/(S) | H64: =UCchkval(D64) -> 0.5483870968 | I64: =B64&" "&TEXT(C64,"0.00")&" "&D64 -> Velocity, inlet-x, Vx1 = -4527.00 ft/min
B65: Velocity, inlet-y, Vy1 = | C65: 0 | D65: ft/min | E65: input value | F65: =CVBaseVal(C65,D65) -> 0 | G65: =CVBaseUnit(D65) -> (M)/(S) | H65: =UCchkval(D65) -> 0.5483870968 | I65: =B65&" "&TEXT(C65,"0.00")&" "&D65 -> Velocity, inlet-y, Vy1 = 0.00 ft/min
B66: Velocity, outlet-x, Vx2 = | C66: 0 | D66: ft/min | E66: input value | F66: =CVBaseVal(C66,D66) -> 0 | G66: =CVBaseUnit(D66) -> (M)/(S) | H66: =UCchkval(D66) -> 0.5483870968 | I66: =B66&" "&TEXT(C66,"0.00")&" "&D66 -> Velocity, outlet-x, Vx2 = 0.00 ft/min
B67: Velocity, outlet-y, Vy2 = | C67: =-4527 -> -4527 | D67: ft/min | E67: input value | F67: =CVBaseVal(C67,D67) -> -22.99720599 | G67: =CVBaseUnit(D67) -> (M)/(S) | H67: =UCchkval(D67) -> 0.5483870968 | I67: =B67&" "&TEXT(C67,"0.00")&" "&D67 -> Velocity, outlet-y, Vy2 = -4527.00 ft/min
B68: Velocity check = | C68: =cvval(F68,G68,D68) -> -0.067580543 | D68: mach[s] | E68: =F64 | F68: =F64 -> -22.99720599 | G68: =IF(AND(H64=H68), CVBaseUnit(D68), NA()) -> (M/S) | H68: =UCchkval(D68) -> 0.5483870968 | I68: =B68&" "&TEXT(C68,"0.00E+00")&" "&D68 -> Velocity check = -6.76E-02 mach[s]
B70: Force-x, Fx = | C70: =cvval(F70,G70,D70) -> 22.19992356 | D70: (LBF) | E70: =F57*F58*(F66-F64) | F70: =F57*F58*(F66-F64) -> 98.75018121 | G70: =IF(AND((H66=H64),(H57*H58)*(H66)=H70), CVBaseUnit(D70), NA()) -> (((KG*M)/S^2)) | H70: =UCchkval(D70) -> 0.1945889698 | I70: =B70&" "&TEXT(C70,"0.00E+00")&" "&D70 -> Force-x, Fx = 2.22E+01 (LBF)
B71: Force-y, Fy = | C71: =cvval(F71,G71,D71) -> -22.19992356 | D71: (LBF) | E71: =F57*F58*(F67-F65) | F71: =F57*F58*(F67-F65) -> -98.75018121 | G71: =IF(AND((H67=H65),(H57*H58)*(H67)=H71), CVBaseUnit(D71), NA()) -> (((KG*M)/S^2)) | H71: =UCchkval(D71) -> 0.1945889698 | I71: =B71&" "&TEXT(C71,"0.00E+00")&" "&D71 -> Force-y, Fy = -2.22E+01 (LBF)
B72: Force magnitude, F = | C72: =cvval(F72,G72,D72) -> 31.39543299 | D72: (LBF) | E72: =(F70^2+F71^2)^(1/2) | F72: =(F70^2+F71^2)^(1/2) -> 139.6538456 | G72: =IF(AND((H70^2=H71^2),(H71^2)^(1/2)=H72), CVBaseUnit(D72), NA()) -> (((KG*M)/S^2)) | H72: =UCchkval(D72) -> 0.1945889698 | I72: =B72&" "&TEXT(C72,"0.00E+00")&" "&D72 -> Force magnitude, F = 3.14E+01 (LBF)
B75: =CELL("filename") -> C:\Users\Owner\Desktop\[FreeStyle.xlsm]Intro
B76: Fluid Mechanics and Hydraulics, RV Giles, McGraw-Hill
B80: Parameter | C80: Value | D80: Unit | E80: Comment | F80: BaseVal | G80: BaseUnit | H80: ChkVal | I80: text
B81: Drag Coefficient, Cd = | C81: 0.2 | D81: ~ | E81: input value, Body, (bullet), see F94 calculated from empirical data | F81: =CVBaseVal(C81,D81) -> 0.2 | G81: =CVBaseUnit(D81) -> (ITEM) | H81: =UCchkval(D81) -> 1 | I81: =B81&" "&TEXT(C81,"0.00")&" "&D81 -> Drag Coefficient, Cd = 0.20 ~
B82: Diameter, particle sphere = | C82: 5.56 | D82: mm | E82: input value, Body, (baseball) | F82: =CVBaseVal(C82,D82) -> 0.00556 | G82: =CVBaseUnit(D82) -> (M) | H82: =UCchkval(D82) -> 17 | I82: =B82&" "&TEXT(C82,"0.00")&" "&D82 -> Diameter, particle sphere = 5.56 mm
B83: Area, A = | C83: =cvval(F83,G83,D83) -> 0.0376332765 | D83: in^2 | E83: =PI()/4*F82^2, circle | F83: =PI()/4*F82^2 -> 2.427948466e-05 | G83: =IF(AND(H82^2=H83), CVBaseUnit(D83), NA()) -> (M)^2 | H83: =UCchkval(D83) -> 289 | I83: =B83&" "&TEXT(C83,"0.00E+00")&" "&D83 -> Area, A = 3.76E-02 in^2
B84: Air temperature, Ta = | C84: 70 | D84: degF | E84: input value, ambient condition | F84: =CVBaseVal(C84,D84) -> 294.2611111 | G84: =CVBaseUnit(D84) -> (DEGK) | H84: 7 | I84: =B84&" "&TEXT(C84,"0.00")&" "&D84 -> Air temperature, Ta = 70.00 degF
B85: Air Pressure, Pa = | C85: 1 | D85: atm | E85: input value, ambient condition | F85: =CVBaseVal(C85,D85) -> 101325 | G85: =CVBaseUnit(D85) -> (KG/(M*S^2)) | H85: 0.0006733182347 | I85: =B85&" "&TEXT(C85,"0.00")&" "&D85 -> Air Pressure, Pa = 1.00 atm
B86: Air Density, rho = | C86: =cvval(F86,G86,D86) -> 0.07446060254 | D86: lbm/ft^3 | E86: =AirDensity(F83,F84) | F86: =AirDensity(F84,F85) -> 1.192737278 | G86: =IF(AND(H84=UCchkval("degk"),H85=UCchkval("atm"),UCchkval(D86)=H86), CVBaseUnit(D86), NA()) -> (KG)/(M)^3 | H86: 0.002238957867 | I86: =B86&" "&TEXT(C86,"0.00E+00")&" "&D86 -> Air Density, rho = 7.45E-02 lbm/ft^3
B87: Gravity acceleration, g = | C87: 1 | D87: g | E87: input value, ambient condition | F87: =CVBaseVal(C87,D87) -> 9.80665 | G87: =CVBaseUnit(D87) -> (M/S^2) | H87: =UCchkval(D87) -> 0.01768990635 | I87: =B87&" "&TEXT(C87,"0.00")&" "&D87 -> Gravity acceleration, g = 1.00 g
B88: Particle Density, rho-p = | C88: 5.694700295 | D88: gm/cc | E88: input value, (sand) | F88: =CVBaseVal(C88,D88) -> 5694.700295 | G88: =CVBaseUnit(D88) -> (KG)/(M^3) | H88: =UCchkval(D88) -> 0.002238957867 | I88: =B88&" "&TEXT(C88,"0.00")&" "&D88 -> Particle Density, rho-p = 5.69 gm/cc
B89: Particle mass, m = | C89: =cvval(F89,G89,D89) -> 63.27266925 | D89: grain | E89: =(4/3*PI()*F82^3)*F88, sphere * density | F89: =(4/3*PI()*F82^3)*F88 -> 0.0041 | G89: =IF(AND((H82^3)*H88=H89), CVBaseUnit(D89), NA()) -> (KG) | H89: =UCchkval(D89) -> 11 | I89: =B89&" "&TEXT(C89,"0.00E+00")&" "&D89 -> Particle mass, m = 6.33E+01 grain
B91: Terminal Velocity, Vt = | C91: =cvval(F91,G91,D91) -> 117.8311557 | D91: m/s | E91: =((2*F89*F87)/(F86*F83*F81))^(1/2), wikipedia.org | F91: =((2*F89*F87)/(F86*F83*F81))^(1/2) -> 117.8311557 | G91: =IF(AND(((H89*H87)/(H86*H83*H81))^(1/2)=H91), CVBaseUnit(D91), NA()) -> (M)/(S) | H91: =UCchkval(D91) -> 0.5483870968 | I91: =B91&" "&TEXT(C91,"0.00E+00")&" "&D91 -> Terminal Velocity, Vt = 1.18E+02 m/s
B93: Aerodrag Factor, k = | C93: =cvval(F93,G93,D93) -> 0.0003412277912 | D93: kg/s | E93: =F89*F87/F91, kg/s | F93: =F89*F87/F91 -> 0.0003412277912 | G93: =IF(AND(H89*H87/H91=H93), CVBaseUnit(D93), NA()) -> (KG)/(S) | H93: =UCchkval(D93) -> 0.3548387097 | I93: =B93&" "&TEXT(C93,"0.00E+00")&" "&D93 -> Aerodrag Factor, k = 3.41E-04 kg/s
B94: Drag range to Vacuum range, Rd/Rv = | C94: =cvval(F94,G94,D94) -> 0.06373904133 | D94: ~ | E94: Curve fit to empirical data = 1.266*F93^0.3744 | F94: =1.266*F93^0.3744 -> 0.06373904133 | G94: =IF(AND(H93/UCchkval("kg/s")=H94), CVBaseUnit(D94), NA()) -> (ITEM) | H94: 1 | I94: =B94&" "&TEXT(C94,"0.00E+00")&" "&D94 -> Drag range to Vacuum range, Rd/Rv = 6.37E-02 ~
B95: Initial Velocity, V0 = | C95: 940 | D95: m/s | E95: input value, Body at launch | F95: =CVBaseVal(C95,D95) -> 940 | G95: =CVBaseUnit(D95) -> (M)/(S) | H95: 0.5483870968 | I95: =B95&" "&TEXT(C95,"0.00")&" "&D95 -> Initial Velocity, V0 = 940.00 m/s
B96: Launch Angle, theta = | C96: 45 | D96: deg | E96: input value, Body at launch | F96: =CVBaseVal(C96,D96) -> 0.7853981634 | G96: =CVBaseUnit(D96) -> (M/M) | H96: 1 | I96: =B96&" "&TEXT(C96,"0.00")&" "&D96 -> Launch Angle, theta = 45.00 deg
B97: Vt/V0 = | C97: =cvval(F97,G97,D97) -> 0.1253522933 | D97: ~ | E97: =F91/F95 | F97: =F91/F95 -> 0.1253522933 | G97: =IF(AND(H91/H95=H97), CVBaseUnit(D97), NA()) -> (ITEM) | H97: 1 | I97: =B97&" "&TEXT(C97,"0.00E+00")&" "&D97 -> Vt/V0 = 1.25E-01 ~
B98: Drag range to Vacuum range, Rd/Rv = | C98: 0.063 | D98: ~ | E98: estimate, see F94 calculated from empirical data | F98: =CVBaseVal(C98,D98) -> 0.063 | G98: =CVBaseUnit(D98) -> (ITEM) | H98: 1 | I98: =B98&" "&TEXT(C98,"0.00")&" "&D98 -> Drag range to Vacuum range, Rd/Rv = 0.06 ~
B100: Vacuum range, Rv = | C100: =cvval(F100,G100,D100) -> 90.10212458 | D100: km | E100: =-2*(F95*COS(F96))*(F95*SIN(F96))/-F87 | F100: =-2*(F95*COS(F96))*(F95*SIN(F96))/-F87 -> 90102.12458 | G100: =IF(AND(H96=1,H95*H95/H87=H100), CVBaseUnit(D100), NA()) -> (M) | H100: =UCchkval(D100) -> 17 | I100: =B100&" "&TEXT(C100,"0.00E+00")&" "&D100 -> Vacuum range, Rv = 9.01E+01 km
B101: Drag range, Rd = | C101: =cvval(F101,G101,D101) -> 5.676433848 | D101: km | E101: =F100*F98 | F101: =F100*F98 -> 5676.433848 | G101: =IF(AND(H100*H98=H101), CVBaseUnit(D101), NA()) -> (M) | H101: =UCchkval(D101) -> 17 | I101: =B101&" "&TEXT(C101,"0.00E+00")&" "&D101 -> Drag range, Rd = 5.68E+00 km
B102: Vacuum Height at peak = | C102: =cvval(F102,G102,D102) -> 27.9933763 | D102: mi | E102: =(F95*SIN(F96))^2/(F87) | F102: =(F95*SIN(F96))^2/(F87) -> 45051.06229 | G102: =IF(AND(H96=1,(H95)^2/(H87)=H102), CVBaseUnit(D102), NA()) -> (M) | H102: =UCchkval(D102) -> 17 | I102: =B102&" "&TEXT(C102,"0.00E+00")&" "&D102 -> Vacuum Height at peak = 2.80E+01 mi
B103: Drag height to Vacuum height, Hd/Hv = | C103: 0.5 | D103: ~ | E103: Measured from prior calcs, see F94 calculated from empirical data | F103: =CVBaseVal(C103,D103) -> 0.5 | G103: =CVBaseUnit(D103) -> (ITEM) | H103: =UCchkval(D103) -> 1 | I103: =B103&" "&TEXT(C103,"0.00")&" "&D103 -> Drag height to Vacuum height, Hd/Hv = 0.50 ~
B104: Drag height, Hd = | C104: =cvval(F104,G104,D104) -> 13.99668815 | D104: mi | E104: =F103*F102 | F104: =F103*F102 -> 22525.53114 | G104: =IF(AND(H103*H102=H104), CVBaseUnit(D104), NA()) -> (M) | H104: =UCchkval(D104) -> 17 | I104: =B104&" "&TEXT(C104,"0.00E+00")&" "&D104 -> Drag height, Hd = 1.40E+01 mi
B107: =CELL("filename") -> C:\Users\Owner\Desktop\[FreeStyle.xlsm]Intro
Q108: k | R108: cd | S108: rd/rv
Q109: 0.0294 | R109: 4.36 | S109: 0.249
Q110: 0.0405 | R110: 0.25 | S110: 0.5
Q111: 0.0404 | R111: 0.25 | S111: 0.41
Q112: 0.474 | R112: 0.14 | S112: 0.92
H115: (m) | I115: (m)
G117: item | H117: range | I117: elevation
G118: pingpong | H118: 0 | I118: 0
G119: pingpong | H119: 26 | I119: 19
G120: pingpong | H120: 35 | I120: 0
G121: baseball | H121: 0 | I121: 0
G122: baseball | H122: 80 | I122: 40
G123: baseball | H123: 115 | I123: 0
G124: bowling | H124: 0 | I124: 0
G125: bowling | H125: 130 | I125: 60
G126: bowling | H126: 220 | I126: 0
G127: calc | H127: 0 | I127: 0
G128: calc
G129: calc | H129: 0
B171: GOALSEEKVar Test:
B172: min | C172: 50
B173: max | C173: 150
B174: step | C174: 0.01
B175: function | C175: ="var*1.22-14.3" -> var*1.22-14.3
B176: target | C176: 100
B177: value= | C177: =GoalSeekVar(C176,C172,C173,C174,C175) -> 93.69 | D177: =GoalSeekVar(C27,C23,C24,C25,C26)

Sheet Plot (hidden)
A1: =Data!A1 -> VVES
A2: =Data!A2 -> Analysis - FreeStyle Spreadsheet
A3: =Data!A3 -> MJ Van Voorhis 2/11/2016, 8/25/16
G4: Coord_1 | J4: Coord_2
G6: Angle Slider: | J6: Angle Slider:
G10: Ang_1 = | H10: 315 | I10: =RADIANS(H10) -> 5.497787144 | J10: Ang_2 = | K10: 404 | L10: =RADIANS(K10) -> 7.051130178
B11: Scale = | C11: 0.4 | G11: x0_1 | H11: y0_1 | I11: z0_1 | J11: x0_2 | K11: y0_2 | L11: z0_2
G12: 0 | H12: 0 | I12: 0 | J12: 0.7 | K12: 0.2 | L12: 0
G13: A_1 | H13: B_1 | I13: C_1 | J13: A_2 | K13: B_2 | L13: C_2
G14: 1 | H14: 0 | I14: 0 | J14: 0 | K14: 1 | L14: 1
B16: Element | C16: point | D16: x | E16: y | F16: z | G16: x_1 | H16: y_1 | I16: z_1 | J16: Plot_x | K16: Plot_y | L16: Plot_z
B17: Axis-x | C17: PtX0 | D17: 0 | E17: 0 | F17: 0 | G17: =CXFxp(G$12,H$12,I$12,G$14,H$14,I$14,I$10,$C$11*D17,$C$11*E17,$C$11*F17) -> 0 | H17: =CXFyp(G$12,H$12,I$12,G$14,H$14,I$14,I$10,$C$11*D17,$C$11*E17,$C$11*F17) -> 0 | I17: =CXFzp(G$12,H$12,I$12,G$14,H$14,I$14,I$10,$C$11*D17,$C$11*E17,$C$11*F17) -> 0 | J17: =CXFxp(J$12,K$12,L$12,J$14,K$14,L$14,L$10,G17,H17,I17) -> -0.7 | K17: =CXFyp(J$12,K$12,L$12,J$14,K$14,L$14,L$10,G17,H17,I17) -> -0.2 | L17: =CXFzp(J$12,K$12,L$12,J$14,K$14,L$14,L$10,G17,H17,I17) -> 0
B18: =B17 -> Axis-x | C18: PtX1 | D18: 1 | E18: 0 | F18: 0 | G18: 0.4 | H18: 0 | I18: 0 | J18: -0.4122640799 | K18: -0.3964790577 | L18: 0.1964790577
B19: Axis-y | C19: PtY0 | D19: 0 | E19: 0 | F19: 0 | G19: 0 | H19: 0 | I19: 0 | J19: -0.7 | K19: -0.2 | L19: 0
B20: =B19 -> Axis-y | C20: PtY1 | D20: 0 | E20: 1 | F20: 0 | G20: 0 | H20: 0.2828427125 | I20: 0.2828427125 | J20: -0.7 | K20: 0.08284271247 | L20: 0.2828427125
B21: Axis-z | C21: PtZ0 | D21: 0 | E21: 0 | F21: 0 | G21: 0 | H21: 0 | I21: 0 | J21: -0.7 | K21: -0.2 | L21: 0
B22: =B21 -> Axis-z | C22: PtZ1 | D22: 0 | E22: 0 | F22: 1 | G22: 0 | H22: -0.2828427125 | I22: 0.2828427125 | J22: -0.9778633482 | K22: -0.4034600203 | L22: 0.2034600203
B55: Element | C55: point | D55: x | E55: y | F55: z | G55: x_1 | H55: y_1 | I55: z_1 | J55: Plot_x | K55: Plot_y | L55: Plot_z
B56: Section1 | C56: Pt00 | D56: =Section!$B$7 -> 1 | E56: =Section!$C$7 -> 9 | F56: 0 | G56: =CXFxp(G$12,H$12,I$12,G$14,H$14,I$14,I$10,$C$11*D56,$C$11*E56,$C$11*F56) -> 0.4 | H56: =CXFyp(G$12,H$12,I$12,G$14,H$14,I$14,I$10,$C$11*D56,$C$11*E56,$C$11*F56) -> 2.545584412 | I56: =CXFzp(G$12,H$12,I$12,G$14,H$14,I$14,I$10,$C$11*D56,$C$11*E56,$C$11*F56) -> 2.545584412 | J56: =CXFxp(J$12,K$12,L$12,J$14,K$14,L$14,L$10,G56,H56,I56) -> -0.4122640799 | K56: =CXFyp(J$12,K$12,L$12,J$14,K$14,L$14,L$10,G56,H56,I56) -> 2.149105355 | L56: =CXFzp(J$12,K$12,L$12,J$14,K$14,L$14,L$10,G56,H56,I56) -> 2.74206347
B57: =B56 -> Section1 | C57: Pt01 | D57: =Section!$B$8 -> 4.3 | E57: =Section!$C$8 -> 6.5 | F57: =F56 -> 0 | G57: 1.72 | H57: 1.838477631 | I57: 1.838477631 | J57: 0.5372644566 | K57: 0.7936176828 | L57: 2.683337579
B58: =B57 -> Section1 | C58: Pt02 | D58: =Section!$B$9 -> 7.6 | E58: =Section!$C$9 -> 5 | F58: =F57 -> 0 | G58: 3.04 | H58: 1.414213562 | I58: 1.414213562 | J58: 1.486792993 | K58: -0.2790272765 | L58: 2.907454401
B59: Section1 | C59: Pt03 | D59: =Section!$B$10 -> 10.9 | E59: =Section!$C$10 -> 4 | F59: 0 | G59: 4.36 | H59: 1.13137085 | I59: 1.13137085 | J59: 2.436321529 | K59: -1.21025088 | L59: 3.272992579
B60: Section1 | C60: Pt04 | D60: =Section!$B$11 -> 14.2 | E60: =Section!$C$11 -> 4 | F60: 0 | G60: 5.68 | H60: 1.13137085 | I60: 1.13137085 | J60: 3.385850066 | K60: -1.85863177 | L60: 3.92137347
B61: Section1 | C61: Pt05 | D61: =Section!$B$12 -> 17.5 | E61: =Section!$C$12 -> 5 | F61: 0 | G61: 7 | H61: 1.414213562 | I61: 1.414213562 | J61: 4.335378602 | K61: -2.224169948 | L61: 4.852597073
B62: Section1 | C62: Pt06 | D62: =Section!$B$13 -> 20.8 | E62: =Section!$C$13 -> 6.5 | F62: 0 | G62: 8.32 | H62: 1.838477631 | I62: 1.838477631 | J62: 5.284907139 | K62: -2.44828677 | L62: 5.925242032
B63: Section1 | C63: Pt07 | D63: =Section!$B$14 -> 24.1 | E63: =Section!$C$14 -> 9 | F63: 0 | G63: 9.64 | H63: 2.545584412 | I63: 2.545584412 | J63: 6.234435675 | K63: -2.389560879 | L63: 7.280729704
B64: Section1 | C64: Pt08 | D64: =Section!$B$15 -> 23.4 | E64: =Section!$C$15 -> 10.4 | F64: 0 | G64: 9.36 | H64: 2.94156421 | I64: 2.94156421 | J64: 6.033020531 | K64: -1.856045741 | L64: 7.539174161
B65: Section1 | C65: Pt08 | D65: =Section!$B$16 -> 20 | E65: =Section!$C$16 -> 7.9 | F65: 0 | G65: 8 | H65: 2.234457429 | I65: 2.234457429 | J65: 5.054718403 | K65: -1.895123726 | L65: 6.164038583
B66: Section1 | C66: Pt09 | D66: =Section!$B$17 -> 17.5 | E66: =Section!$C$17 -> 6.4 | F66: 0 | G66: 7 | H66: 1.81019336 | I66: 1.81019336 | J66: 4.335378602 | K66: -1.828190151 | L66: 5.24857687
B67: Section1 | C67: Pt10 | D67: =Section!$B$18 -> 14.2 | E67: =Section!$C$18 -> 5.4 | F67: 0 | G67: 5.68 | H67: 1.527350647 | I67: 1.527350647 | J67: 3.385850066 | K67: -1.462651973 | L67: 4.317353267
B68: Section1 | C68: Pt11 | D68: =Section!$B$19 -> 10.9 | E68: =Section!$C$19 -> 5.4 | F68: 0 | G68: =CXFxp(G$12,H$12,I$12,G$14,H$14,I$14,I$10,$C$11*D68,$C$11*E68,$C$11*F68) -> 4.36 | H68: =CXFyp(G$12,H$12,I$12,G$14,H$14,I$14,I$10,$C$11*D68,$C$11*E68,$C$11*F68) -> 1.527350647 | I68: =CXFzp(G$12,H$12,I$12,G$14,H$14,I$14,I$10,$C$11*D68,$C$11*E68,$C$11*F68) -> 1.527350647 | J68: =CXFxp(J$12,K$12,L$12,J$14,K$14,L$14,L$10,G68,H68,I68) -> 2.436321529 | K68: =CXFyp(J$12,K$12,L$12,J$14,K$14,L$14,L$10,G68,H68,I68) -> -0.814271082 | L68: =CXFzp(J$12,K$12,L$12,J$14,K$14,L$14,L$10,G68,H68,I68) -> 3.668972377
B69: Section1 | C69: Pt12 | D69: =Section!$B$20 -> 7.6 | E69: =Section!$C$20 -> 6.4 | F69: 0 | G69: 3.04 | H69: 1.81019336 | I69: 1.81019336 | J69: 1.486792993 | K69: 0.116952521 | L69: 3.303434199
B70: Section1 | C70: Pt13 | D70: =Section!$B$21 -> 4.8 | E70: =Section!$C$21 -> 7.9 | F70: 0 | G70: 1.92 | H70: 2.234457429 | I70: 2.234457429 | J70: 0.6811324167 | K70: 1.091357951 | L70: 3.177556906
B71: Section2 | C71: Pt00 | D71: =Section!$B$7 -> 1 | E71: =Section!$C$7 -> 9 | F71: 1 | G71: 0.4 | H71: 2.2627417 | I71: 2.828427125 | J71: -0.690127428 | K71: 1.945645334 | L71: 2.94552349
B72: =B71 -> Section2 | C72: Pt01 | D72: =Section!$B$8 -> 4.3 | E72: =Section!$C$8 -> 6.5 | F72: =F71 -> 1 | G72: 1.72 | H72: 1.555634919 | I72: 2.121320344 | J72: 0.2594011084 | K72: 0.5901576625 | L72: 2.8867976
B73: =B72 -> Section2 | C73: Pt02 | D73: =Section!$B$9 -> 7.6 | E73: =Section!$C$9 -> 5 | F73: =F72 -> 1 | G73: 3.04 | H73: 1.13137085 | I73: 1.697056275 | J73: 1.208929645 | K73: -0.4824872968 | L73: 3.110914422
B74: Section2 | C74: Pt03 | D74: =Section!$B$10 -> 10.9 | E74: =Section!$C$10 -> 4 | F74: 1 | G74: 4.36 | H74: 0.8485281374 | I74: 1.414213562 | J74: 2.158458181 | K74: -1.4137109 | L74: 3.4764526
B75: Section2 | C75: Pt04 | D75: =Section!$B$11 -> 14.2 | E75: =Section!$C$11 -> 4 | F75: 1 | G75: 5.68 | H75: 0.8485281374 | I75: 1.414213562 | J75: 3.107986718 | K75: -2.06209179 | L75: 4.12483349
B76: Section2 | C76: Pt05 | D76: =Section!$B$12 -> 17.5 | E76: =Section!$C$12 -> 5 | F76: 1 | G76: 7 | H76: 1.13137085 | I76: 1.697056275 | J76: 4.057515254 | K76: -2.427629968 | L76: 5.056057093
B77: Section2 | C77: Pt06 | D77: =Section!$B$13 -> 20.8 | E77: =Section!$C$13 -> 6.5 | F77: 1 | G77: 8.32 | H77: 1.555634919 | I77: 2.121320344 | J77: 5.007043791 | K77: -2.65174679 | L77: 6.128702052
B78: Section2 | C78: Pt07 | D78: =Section!$B$14 -> 24.1 | E78: =Section!$C$14 -> 9 | F78: 1 | G78: 9.64 | H78: 2.2627417 | I78: 2.828427125 | J78: 5.956572327 | K78: -2.5930209 | L78: 7.484189724
B79: Section2 | C79: Pt08 | D79: =Section!$B$15 -> 23.4 | E79: =Section!$C$15 -> 10.4 | F79: 1 | G79: 9.36 | H79: 2.658721497 | I79: 3.224406922 | J79: 5.755157183 | K79: -2.059505762 | L79: 7.742634181
B80: Section2 | C80: Pt08 | D80: =Section!$B$16 -> 20 | E80: =Section!$C$16 -> 7.9 | F80: 1 | G80: 8 | H80: 1.951614716 | I80: 2.517300141 | J80: 4.776855055 | K80: -2.098583747 | L80: 6.367498604
B81: Section2 | C81: Pt09 | D81: =Section!$B$17 -> 17.5 | E81: =Section!$C$17 -> 6.4 | F81: 1 | G81: 7 | H81: 1.527350647 | I81: 2.093036072 | J81: 4.057515254 | K81: -2.031650171 | L81: 5.452036891
B82: Section2 | C82: Pt10 | D82: =Section!$B$18 -> 14.2 | E82: =Section!$C$18 -> 5.4 | F82: 1 | G82: 5.68 | H82: 1.244507935 | I82: 1.81019336 | J82: 3.107986718 | K82: -1.666111993 | L82: 4.520813288
B83: Section2 | C83: Pt11 | D83: =Section!$B$19 -> 10.9 | E83: =Section!$C$19 -> 5.4 | F83: 1 | G83: =CXFxp(G$12,H$12,I$12,G$14,H$14,I$14,I$10,$C$11*D83,$C$11*E83,$C$11*F83) -> 4.36 | H83: =CXFyp(G$12,H$12,I$12,G$14,H$14,I$14,I$10,$C$11*D83,$C$11*E83,$C$11*F83) -> 1.244507935 | I83: =CXFzp(G$12,H$12,I$12,G$14,H$14,I$14,I$10,$C$11*D83,$C$11*E83,$C$11*F83) -> 1.81019336 | J83: =CXFxp(J$12,K$12,L$12,J$14,K$14,L$14,L$10,G83,H83,I83) -> 2.158458181 | K83: =CXFyp(J$12,K$12,L$12,J$14,K$14,L$14,L$10,G83,H83,I83) -> -1.017731102 | L83: =CXFzp(J$12,K$12,L$12,J$14,K$14,L$14,L$10,G83,H83,I83) -> 3.872432397
B84: Section2 | C84: Pt12 | D84: =Section!$B$20 -> 7.6 | E84: =Section!$C$20 -> 6.4 | F84: 1 | G84: =CXFxp(G$12,H$12,I$12,G$14,H$14,I$14,I$10,$C$11*D84,$C$11*E84,$C$11*F84) -> 3.04 | H84: =CXFyp(G$12,H$12,I$12,G$14,H$14,I$14,I$10,$C$11*D84,$C$11*E84,$C$11*F84) -> 1.527350647 | I84: =CXFzp(G$12,H$12,I$12,G$14,H$14,I$14,I$10,$C$11*D84,$C$11*E84,$C$11*F84) -> 2.093036072 | J84: =CXFxp(J$12,K$12,L$12,J$14,K$14,L$14,L$10,G84,H84,I84) -> 1.208929645 | K84: =CXFyp(J$12,K$12,L$12,J$14,K$14,L$14,L$10,G84,H84,I84) -> -0.08650749933 | L84: =CXFzp(J$12,K$12,L$12,J$14,K$14,L$14,L$10,G84,H84,I84) -> 3.506894219
B85: Section2 | C85: Pt13 | D85: =Section!$B$21 -> 4.8 | E85: =Section!$C$21 -> 7.9 | F85: 1 | G85: =CXFxp(G$12,H$12,I$12,G$14,H$14,I$14,I$10,$C$11*D85,$C$11*E85,$C$11*F85) -> 1.92 | H85: =CXFyp(G$12,H$12,I$12,G$14,H$14,I$14,I$10,$C$11*D85,$C$11*E85,$C$11*F85) -> 1.951614716 | I85: =CXFzp(G$12,H$12,I$12,G$14,H$14,I$14,I$10,$C$11*D85,$C$11*E85,$C$11*F85) -> 2.517300141 | J85: =CXFxp(J$12,K$12,L$12,J$14,K$14,L$14,L$10,G85,H85,I85) -> 0.4032690685 | K85: =CXFyp(J$12,K$12,L$12,J$14,K$14,L$14,L$10,G85,H85,I85) -> 0.8878979311 | L85: =CXFzp(J$12,K$12,L$12,J$14,K$14,L$14,L$10,G85,H85,I85) -> 3.381016926

Sheet MonteCarlo (hidden)
A1: CALCULATION WORKBOOK
A2: Analysis template
A3: xxxxxxxxxx xx/xx/xx | D3: Press F9 to recalculate
B5: UNIFORM DISTRIBUTION | P5: NORMAL DISTRIBUTION
B7: Average | C7: Range | P7: Average | Q7: Range
B8: 10 | C8: 10 | P8: 10 | Q8: 10
B11: Case | C11: Value | E11: bin | F11: freq | P11: Case | Q11: Value | S11: bin | T11: freq
B12: 1 | C12: =($C$8)*RAND()+($B$8-$C$8/2) -> 8.689958533 | E12: =($C$8)*0+($B$8-$C$8/2) -> 5 | F12: =FREQUENCY(C12:C274,E12:E22) -> 0 | P12: 1 | Q12: =((($Q$8)*RAND()+($P$8-$Q$8/2))+(($Q$8)*RAND()+($P$8-$Q$8/2))+(($Q$8)*RAND()+($P$8-$Q$8/2))+(($Q$8)*RAND()+($P$8-$Q$8/2))+(($Q$8)*RAND()+($P$8-$Q$8/2)))/5 -> 8.630208828 | S12: =($Q$8)*0+($P$8-$Q$8/2) -> 5 | T12: =FREQUENCY(Q12:Q274,S12:S22) -> 0
B13: 2 | C13: 6.640016776 | E13: =($C$8)*0.1+($B$8-$C$8/2) -> 6 | F13: 15 | P13: 2 | Q13: =((($Q$8)*RAND()+($P$8-$Q$8/2))+(($Q$8)*RAND()+($P$8-$Q$8/2))+(($Q$8)*RAND()+($P$8-$Q$8/2))+(($Q$8)*RAND()+($P$8-$Q$8/2))+(($Q$8)*RAND()+($P$8-$Q$8/2)))/5 -> 10.21148417 | S13: =($Q$8)*0.1+($P$8-$Q$8/2) -> 6 | T13: 0
B14: 3 | C14: 7.391831433 | E14: =($C$8)*0.2+($B$8-$C$8/2) -> 7 | F14: 34 | P14: 3 | Q14: 9.15628345 | S14: =($Q$8)*0.2+($P$8-$Q$8/2) -> 7 | T14: 3
B15: 4 | C15: 8.912929382 | E15: =($C$8)*0.3+($B$8-$C$8/2) -> 8 | F15: 27 | P15: 4 | Q15: 9.129356435 | S15: =($Q$8)*0.3+($P$8-$Q$8/2) -> 8 | T15: 16
B16: 5 | C16: 11.77063514 | E16: =($C$8)*0.4+($B$8-$C$8/2) -> 9 | F16: 31 | P16: 5 | Q16: 10.33952419 | S16: =($Q$8)*0.4+($P$8-$Q$8/2) -> 9 | T16: 42
B17: 6 | C17: 13.33165937 | E17: =($C$8)*0.5+($B$8-$C$8/2) -> 10 | F17: 21 | P17: 6 | Q17: 9.175692491 | S17: =($Q$8)*0.5+($P$8-$Q$8/2) -> 10 | T17: 79
B18: 7 | C18: 12.35264977 | E18: =($C$8)*0.6+($B$8-$C$8/2) -> 11 | F18: 27 | P18: 7 | Q18: 10.51569865 | S18: =($Q$8)*0.6+($P$8-$Q$8/2) -> 11 | T18: 68
B19: 8 | C19: 11.54187494 | E19: =($C$8)*0.7+($B$8-$C$8/2) -> 12 | F19: 27 | P19: 8 | Q19: 10.71573687 | S19: =($Q$8)*0.7+($P$8-$Q$8/2) -> 12 | T19: 42
B20: 9 | C20: 11.23856677 | E20: =($C$8)*0.8+($B$8-$C$8/2) -> 13 | F20: 27 | P20: 9 | Q20: 11.27608511 | S20: =($Q$8)*0.8+($P$8-$Q$8/2) -> 13 | T20: 10
B21: 10 | C21: 10.79079218 | E21: =($C$8)*0.9+($B$8-$C$8/2) -> 14 | F21: 23 | P21: 10 | Q21: 9.144474683 | S21: =($Q$8)*0.9+($P$8-$Q$8/2) -> 14 | T21: 3
B22: 11 | C22: 14.75202555 | E22: =($C$8)*1+($B$8-$C$8/2) -> 15 | F22: 31 | P22: 11 | Q22: 8.581517616 | S22: =($Q$8)*1+($P$8-$Q$8/2) -> 15 | T22: 0
B23: 12 | C23: 14.07580279 | P23: 12 | Q23: 7.769719406
B24: 13 | C24: 6.925864566 | P24: 13 | Q24: 10.66944157
B25: 14 | C25: 9.25430066 | P25: 14 | Q25: 9.248358725
B26: 15 | C26: 13.34170402 | P26: 15 | Q26: 9.915177978
B27: 16 | C27: 14.69218525 | P27: 16 | Q27: 8.523458779
B28: 17 | C28: 10.2904229 | P28: 17 | Q28: 9.049856121
B29: 18 | C29: 14.31321494 | P29: 18 | Q29: 7.469412984
B30: 19 | C30: 9.762957983 | P30: 19 | Q30: 10.39355741
B31: 20 | C31: 11.9823021 | P31: 20 | Q31: 11.63645397
B32: 21 | C32: 10.14356362 | P32: 21 | Q32: 9.439458684
B33: 22 | C33: 5.358118999 | P33: 22 | Q33: 7.851048951
B34: 23 | C34: 7.91936031 | P34: 23 | Q34: 9.356812961
B35: 24 | C35: 12.38364627 | P35: 24 | Q35: 11.49446657
B36: 25 | C36: 12.45261618 | P36: 25 | Q36: 9.344087946
B37: 26 | C37: 12.81647593 | P37: 26 | Q37: 8.672685435
B38: 27 | C38: 12.64383091 | P38: 27 | Q38: 9.604840162
B39: 28 | C39: 14.97990883 | P39: 28 | Q39: 9.93572839
B40: 29 | C40: 14.32561338 | P40: 29 | Q40: 9.977184234
B41: 30 | C41: 10.42820916 | P41: 30 | Q41: 9.787724535
B42: 31 | C42: 6.506627514 | P42: 31 | Q42: 7.987345247
B43: 32 | C43: 8.21714008 | P43: 32 | Q43: 9.999794859
B44: 33 | C44: 8.557411809 | P44: 33 | Q44: 10.81455612
B45: 34 | C45: 13.66149287 | P45: 34 | Q45: 10.95480755
B46: 35 | C46: 12.31083387 | P46: 35 | Q46: 9.645256299
B47: 36 | C47: 6.825512083 | P47: 36 | Q47: 8.578415891
B48: 37 | C48: 10.99995779 | P48: 37 | Q48: 10.05870189
B49: 38 | C49: 9.085295976 | P49: 38 | Q49: 10.05010536
B50: 39 | C50: 11.43030476 | P50: 39 | Q50: 8.645958356
B51: 40 | C51: 8.794451314 | P51: 40 | Q51: 10.50963072
B52: 41 | C52: 9.240971133 | P52: 41 | Q52: 11.76373078
B53: 42 | C53: 10.04124742 | P53: 42 | Q53: 11.17610258
B54: 43 | C54: 11.0156773 | P54: 43 | Q54: 10.54172675
B55: 44 | C55: 7.889451567 | P55: 44 | Q55: 10.31294423
B56: 45 | C56: 6.814411676 | P56: 45 | Q56: 8.483707003
B57: 46 | C57: 9.164920579 | P57: 46 | Q57: 9.291186857
B58: 47 | C58: 8.51168662 | P58: 47 | Q58: 7.69349479
B59: 48 | C59: 11.29421111 | P59: 48 | Q59: 8.831579554
B60: 49 | C60: 7.874109776 | P60: 49 | Q60: 11.18770721
B61: 50 | C61: 14.53670438 | P61: 50 | Q61: 11.09611454
B62: 51 | C62: 10.68279091 | P62: 51 | Q62: 8.326867004
B63: 52 | C63: 6.72818976 | P63: 52 | Q63: 8.068501737
B64: 53 | C64: 12.80590115 | P64: 53 | Q64: 8.566853489
B65: 54 | C65: 8.119948908 | P65: 54 | Q65: 7.453229483
B66: 55 | C66: 7.996961857 | P66: 55 | Q66: 9.803131971
B67: 56 | C67: 10.8595533 | P67: 56 | Q67: 10.63817605
B68: 57 | C68: 9.925353844 | P68: 57 | Q68: 7.382211865
B69: 58 | C69: 12.89907818 | P69: 58 | Q69: 12.33020087
B70: 59 | C70: 8.178826885 | P70: 59 | Q70: 9.213511571
B71: 60 | C71: 7.662888494 | P71: 60 | Q71: 9.00261431
B72: 61 | C72: 7.924008744 | P72: 61 | Q72: 11.5717535
B73: 62 | C73: 9.706134288 | P73: 62 | Q73: 9.816822804
B74: 63 | C74: 13.15945949 | P74: 63 | Q74: 13.50700401
B75: 64 | C75: 9.489376869 | P75: 64 | Q75: 6.688275326
B76: 65 | C76: =($C$8)*RAND()+($B$8-$C$8/2) -> 7.027107729 | P76: 65 | Q76: 9.594315351
B77: 66 | C77: 11.85191902 | P77: 66 | Q77: =((($Q$8)*RAND()+($P$8-$Q$8/2))+(($Q$8)*RAND()+($P$8-$Q$8/2))+(($Q$8)*RAND()+($P$8-$Q$8/2))+(($Q$8)*RAND()+($P$8-$Q$8/2))+(($Q$8)*RAND()+($P$8-$Q$8/2)))/5 -> 10.58202216
B78: 67 | C78: 13.23229123 | P78: 67 | Q78: 11.57855941
B79: 68 | C79: 8.178103956 | P79: 68 | Q79: 8.142325169
B80: 69 | C80: 7.101531733 | P80: 69 | Q80: 9.148468998
B81: 70 | C81: 6.230805996 | P81: 70 | Q81: 10.2495038
B82: 71 | C82: 5.074189484 | P82: 71 | Q82: 11.07160048
B83: 72 | C83: 11.33946096 | P83: 72 | Q83: 9.060717962
B84: 73 | C84: 10.51659863 | P84: 73 | Q84: 10.98725225
B85: 74 | C85: 10.69424421 | P85: 74 | Q85: 11.40061435
B86: 75 | C86: 11.06792174 | P86: 75 | Q86: 8.888820176
B87: 76 | C87: 13.31974605 | P87: 76 | Q87: 12.0908539
B88: 77 | C88: 5.515116678 | P88: 77 | Q88: 10.34881069
B89: 78 | C89: 9.616659963 | P89: 78 | Q89: 11.82358012
B90: 79 | C90: 13.81348321 | P90: 79 | Q90: 12.30697714
B91: 80 | C91: 14.51970462 | P91: 80 | Q91: 9.928021322
B92: 81 | C92: 12.81375929 | P92: 81 | Q92: 10.41237157
B93: 82 | C93: 12.22245865 | P93: 82 | Q93: 8.766047779
B94: 83 | C94: 10.15786521 | P94: 83 | Q94: 11.41782657
B95: 84 | C95: 14.98656057 | P95: 84 | Q95: 9.754960324
B96: 85 | C96: 14.81967331 | P96: 85 | Q96: 9.052280118
B97: 86 | C97: 6.769012038 | P97: 86 | Q97: 10.8819837
B98: 87 | C98: 11.58946162 | P98: 87 | Q98: 10.23271768
B99: 88 | C99: 6.765253776 | P99: 88 | Q99: 9.425165657
B100: 89 | C100: 7.485246057 | P100: 89 | Q100: 11.23666902
B101: 90 | C101: 10.39693241 | P101: 90 | Q101: 12.34855897
B102: 91 | C102: 14.14458042 | P102: 91 | Q102: 9.136998674
B103: 92 | C103: 5.127771332 | P103: 92 | Q103: 10.58352516
B104: 93 | C104: 7.797024655 | P104: 93 | Q104: 10.35570353
B105: 94 | C105: 14.43983573 | P105: 94 | Q105: 9.980212827
B106: 95 | C106: 10.61161054 | P106: 95 | Q106: 10.96580577
B107: 96 | C107: 14.83291411 | P107: 96 | Q107: 10.03698807
B108: 97 | C108: 6.662977407 | P108: 97 | Q108: 9.182078169
B109: 98 | C109: 9.757420037 | P109: 98 | Q109: 11.02870558
B110: 99 | C110: 7.493232127 | P110: 99 | Q110: 11.26884301
B111: 100 | C111: 10.08478454 | P111: 100 | Q111: 9.621629304
B112: 101 | C112: 11.34957542 | P112: 101 | Q112: 10.21999617
B113: 102 | C113: 7.30171172 | P113: 102 | Q113: 10.68276643
B114: 103 | C114: 11.98675329 | P114: 103 | Q114: 10.52477928
B115: 104 | C115: 8.549193897 | P115: 104 | Q115: 8.43421995
B116: 105 | C116: 9.964801914 | P116: 105 | Q116: 9.860318632
B117: 106 | C117: 7.294997189 | P117: 106 | Q117: 11.37670817
B118: 107 | C118: 9.978692985 | P118: 107 | Q118: 9.716217856
B119: 108 | C119: 9.435689132 | P119: 108 | Q119: 7.816284529
B120: 109 | C120: 11.21744128 | P120: 109 | Q120: 8.931625965
B121: 110 | C121: 6.932498818 | P121: 110 | Q121: 9.518404835
B122: 111 | C122: 10.96206597 | P122: 111 | Q122: 10.49698248
B123: 112 | C123: 5.305567169 | P123: 112 | Q123: 8.928642827
B124: 113 | C124: 13.51559409 | P124: 113 | Q124: 8.012731982
B125: 114 | C125: 12.43392122 | P125: 114 | Q125: 9.843823007
B126: 115 | C126: 9.381590152 | P126: 115 | Q126: 9.141618865
B127: 116 | C127: 11.55195434 | P127: 116 | Q127: 11.00770371
B128: 117 | C128: 14.89645782 | P128: 117 | Q128: 9.923091718
B129: 118 | C129: 14.76010002 | P129: 118 | Q129: 8.426116369
B130: 119 | C130: 13.79013365 | P130: 119 | Q130: 10.59711356
B131: 120 | C131: 8.969593848 | P131: 120 | Q131: 9.669870971
B132: 121 | C132: 11.08823729 | P132: 121 | Q132: 13.06100266
B133: 122 | C133: 6.36527256 | P133: 122 | Q133: 11.87166345
B134: 123 | C134: 14.64899067 | P134: 123 | Q134: 13.28275789
B135: 124 | C135: 9.178494354 | P135: 124 | Q135: 12.15096482
B136: 125 | C136: 8.63856502 | P136: 125 | Q136: 8.727379921
B137: 126 | C137: 7.543979856 | P137: 126 | Q137: 10.23588355
B138: 127 | C138: 6.984209501 | P138: 127 | Q138: 7.652734337
B139: 128 | C139: 8.841155058 | P139: 128 | Q139: 10.33073463
B140: 129 | C140: =($C$8)*RAND()+($B$8-$C$8/2) -> 13.04910503 | P140: 129 | Q140: 10.08593178
B141: 130 | C141: 12.19369129 | P141: 130 | Q141: =((($Q$8)*RAND()+($P$8-$Q$8/2))+(($Q$8)*RAND()+($P$8-$Q$8/2))+(($Q$8)*RAND()+($P$8-$Q$8/2))+(($Q$8)*RAND()+($P$8-$Q$8/2))+(($Q$8)*RAND()+($P$8-$Q$8/2)))/5 -> 8.699126326
B142: 131 | C142: 8.396904054 | P142: 131 | Q142: 10.9261565
B143: 132 | C143: 14.64954198 | P143: 132 | Q143: 8.004525984
B144: 133 | C144: 5.288310822 | P144: 133 | Q144: 9.723748775
B145: 134 | C145: 13.99872239 | P145: 134 | Q145: 10.78782284
B146: 135 | C146: 13.75574888 | P146: 135 | Q146: 10.75318417
B147: 136 | C147: 8.156222182 | P147: 136 | Q147: 9.449331803
B148: 137 | C148: 13.88010637 | P148: 137 | Q148: 10.45798721
B149: 138 | C149: 7.220053377 | P149: 138 | Q149: 9.763132329
B150: 139 | C150: 9.49369907 | P150: 139 | Q150: 9.855017495
B151: 140 | C151: 7.638564519 | P151: 140 | Q151: 10.74144456
B152: 141 | C152: 14.88354413 | P152: 141 | Q152: 10.3414434
B153: 142 | C153: 9.217639831 | P153: 142 | Q153: 7.384868158
B154: 143 | C154: 6.036011925 | P154: 143 | Q154: 9.605369855
B155: 144 | C155: 10.01952902 | P155: 144 | Q155: 8.464470649
B156: 145 | C156: 14.3773091 | P156: 145 | Q156: 9.732383844
B157: 146 | C157: 12.52114876 | P157: 146 | Q157: 8.577079031
B158: 147 | C158: 12.2382217 | P158: 147 | Q158: 8.353622945
B159: 148 | C159: 6.8623225 | P159: 148 | Q159: 9.645850707
B160: 149 | C160: 10.50591124 | P160: 149 | Q160: 10.0870252
B161: 150 | C161: 11.74754752 | P161: 150 | Q161: 9.173289433
B162: 151 | C162: 8.417400125 | P162: 151 | Q162: 11.49379379
B163: 152 | C163: 11.64197696 | P163: 152 | Q163: 9.433395131
B164: 153 | C164: 7.214479642 | P164: 153 | Q164: 10.76197243
B165: 154 | C165: 13.05308311 | P165: 154 | Q165: 9.239917417
B166: 155 | C166: 6.536076822 | P166: 155 | Q166: 9.149376255
B167: 156 | C167: 12.68879325 | P167: 156 | Q167: 12.25105504
B168: 157 | C168: 13.13149945 | P168: 157 | Q168: 7.774735352
B169: 158 | C169: 7.789714956 | P169: 158 | Q169: 10.45217807
B170: 159 | C170: 12.70120959 | P170: 159 | Q170: 10.05270203
B171: 160 | C171: 7.638526169 | P171: 160 | Q171: 6.574296977
B172: 161 | C172: 5.596795948 | P172: 161 | Q172: 11.46354291
B173: 162 | C173: 6.099959495 | P173: 162 | Q173: 11.33895238
B174: 163 | C174: 6.89348766 | P174: 163 | Q174: 9.851267702
B175: 164 | C175: 11.78544336 | P175: 164 | Q175: 12.46488842
B176: 165 | C176: 5.230771762 | P176: 165 | Q176: 8.842453164
B177: 166 | C177: 14.43132614 | P177: 166 | Q177: 10.41420675
B178: 167 | C178: 6.967364349 | P178: 167 | Q178: 8.359827253
B179: 168 | C179: 6.714472507 | P179: 168 | Q179: 10.09919253
B180: 169 | C180: 10.68316363 | P180: 169 | Q180: 8.779964965
B181: 170 | C181: 13.44417164 | P181: 170 | Q181: 8.461837993
B182: 171 | C182: 6.822444072 | P182: 171 | Q182: 7.921661004
B183: 172 | C183: 8.335274368 | P183: 172 | Q183: 8.220802934
B184: 173 | C184: 10.00821624 | P184: 173 | Q184: 10.88973179
B185: 174 | C185: 7.19588101 | P185: 174 | Q185: 10.1343872
B186: 175 | C186: 7.245357939 | P186: 175 | Q186: 9.046511228
B187: 176 | C187: 10.22732208 | P187: 176 | Q187: 10.13431248
B188: 177 | C188: 6.194842711 | P188: 177 | Q188: 10.79654754
B189: 178 | C189: 14.33375331 | P189: 178 | Q189: 9.337760252
B190: 179 | C190: 5.17531867 | P190: 179 | Q190: 10.96147234
B191: 180 | C191: 12.34697842 | P191: 180 | Q191: 9.804514069
B192: 181 | C192: 5.50282769 | P192: 181 | Q192: 9.238894126
B193: 182 | C193: 13.78190816 | P193: 182 | Q193: 8.976470009
B194: 183 | C194: 6.841589986 | P194: 183 | Q194: 11.6161705
B195: 184 | C195: 10.61558616 | P195: 184 | Q195: 9.976741639
B196: 185 | C196: 10.13084832 | P196: 185 | Q196: 11.99995263
B197: 186 | C197: 9.473450764 | P197: 186 | Q197: 10.69648648
B198: 187 | C198: 6.821831562 | P198: 187 | Q198: 11.44404191
B199: 188 | C199: 12.57974019 | P199: 188 | Q199: 8.567744023
B200: 189 | C200: 7.953226439 | P200: 189 | Q200: 9.293449817
B201: 190 | C201: 13.72641008 | P201: 190 | Q201: 11.18733699
B202: 191 | C202: 8.244847451 | P202: 191 | Q202: 11.69380888
B203: 192 | C203: 5.489590572 | P203: 192 | Q203: 8.675730908
B204: 193 | C204: =($C$8)*RAND()+($B$8-$C$8/2) -> 8.173417248 | P204: 193 | Q204: 7.778690866
... 70 more rows

Sheet Integrator (hidden)
A1: =Data!A1 -> VVES
A2: =Data!A2 -> Analysis - FreeStyle Spreadsheet
A3: =Data!A3 -> MJ Van Voorhis 2/11/2016, 8/25/16
B5: INTEGRATOR
C7: step= | D7: 0.01
C9: x | D9: f(x) | F9: low/up | G9: min/max | H9: f'(x)
C10: 0 | D10: =xvector^2 -> 0 | F10: 0 | G10: =MIN($C$10:C341) -> 0 | H10: =1/3*F10^3 -> 0
C11: =C10+$D$7 -> 0.01 | D11: 0.0001 | F11: 3.3 | G11: =MAX($C$10:C342) -> 3.31 | H11: =1/3*F11^3 -> 11.979
C12: 0.02 | D12: 0.0004 | F12: int= | G12: =integrate($C$10:$C$341,$D$10:$D$341,F10,F11) -> 12.087955 | H12: =H11-H10 -> 11.979 | I12: =G12/H12-1 -> 0.009095500459
C13: 0.03 | D13: 0.0009
C14: 0.04 | D14: 0.0016
C15: 0.05 | D15: 0.0025
C16: 0.06 | D16: 0.0036
C17: 0.07 | D17: 0.0049
C18: 0.08 | D18: 0.0064
C19: 0.09 | D19: 0.0081
C20: 0.1 | D20: 0.01
C21: 0.11 | D21: 0.0121
C22: 0.12 | D22: 0.0144
C23: 0.13 | D23: 0.0169
C24: 0.14 | D24: 0.0196
C25: 0.15 | D25: 0.0225
C26: 0.16 | D26: 0.0256
C27: 0.17 | D27: 0.0289
C28: 0.18 | D28: 0.0324
C29: 0.19 | D29: 0.0361
C30: 0.2 | D30: 0.04
C31: 0.21 | D31: 0.0441
C32: 0.22 | D32: 0.0484
C33: 0.23 | D33: 0.0529
C34: 0.24 | D34: 0.0576
C35: 0.25 | D35: 0.0625
C36: 0.26 | D36: 0.0676
C37: 0.27 | D37: 0.0729
C38: 0.28 | D38: 0.0784
C39: 0.29 | D39: 0.0841
C40: 0.3 | D40: 0.09
C41: 0.31 | D41: 0.0961
C42: 0.32 | D42: 0.1024
C43: 0.33 | D43: 0.1089
C44: 0.34 | D44: 0.1156
C45: 0.35 | D45: 0.1225
C46: 0.36 | D46: 0.1296
C47: 0.37 | D47: 0.1369
C48: 0.38 | D48: 0.1444
C49: 0.39 | D49: 0.1521
C50: 0.4 | D50: 0.16
C51: 0.41 | D51: 0.1681
C52: 0.42 | D52: 0.1764
C53: 0.43 | D53: 0.1849
C54: 0.44 | D54: 0.1936
C55: 0.45 | D55: 0.2025
C56: 0.46 | D56: 0.2116
C57: 0.47 | D57: 0.2209
C58: 0.48 | D58: 0.2304
C59: 0.49 | D59: 0.2401
C60: 0.5 | D60: 0.25
C61: 0.51 | D61: 0.2601
C62: 0.52 | D62: 0.2704
C63: 0.53 | D63: 0.2809
C64: 0.54 | D64: 0.2916
C65: 0.55 | D65: 0.3025
C66: 0.56 | D66: 0.3136
C67: 0.57 | D67: 0.3249
C68: 0.58 | D68: 0.3364
C69: 0.59 | D69: 0.3481
C70: 0.6 | D70: 0.36
C71: 0.61 | D71: 0.3721
C72: 0.62 | D72: 0.3844
C73: 0.63 | D73: 0.3969
C74: 0.64 | D74: 0.4096
C75: =C74+$D$7 -> 0.65 | D75: 0.4225
C76: 0.66 | D76: 0.4356
C77: 0.67 | D77: 0.4489
C78: 0.68 | D78: 0.4624
C79: 0.69 | D79: 0.4761
C80: 0.7 | D80: 0.49
C81: 0.71 | D81: 0.5041
C82: 0.72 | D82: 0.5184
C83: 0.73 | D83: 0.5329
C84: 0.74 | D84: 0.5476
C85: 0.75 | D85: 0.5625
C86: 0.76 | D86: 0.5776
C87: 0.77 | D87: 0.5929
C88: 0.78 | D88: 0.6084
C89: 0.79 | D89: 0.6241
C90: 0.8 | D90: 0.64
C91: 0.81 | D91: 0.6561
C92: 0.82 | D92: 0.6724
C93: 0.83 | D93: 0.6889
C94: 0.84 | D94: 0.7056
C95: 0.85 | D95: 0.7225
C96: 0.86 | D96: 0.7396
C97: 0.87 | D97: 0.7569
C98: 0.88 | D98: 0.7744
C99: 0.89 | D99: 0.7921
C100: 0.9 | D100: 0.81
C101: 0.91 | D101: 0.8281
C102: 0.92 | D102: 0.8464
C103: 0.93 | D103: 0.8649
C104: 0.94 | D104: 0.8836
C105: 0.95 | D105: 0.9025
C106: 0.96 | D106: 0.9216
C107: 0.97 | D107: 0.9409
C108: 0.98 | D108: 0.9604
C109: 0.99 | D109: 0.9801
C110: 1 | D110: 1
C111: 1.01 | D111: 1.0201
C112: 1.02 | D112: 1.0404
C113: 1.03 | D113: 1.0609
C114: 1.04 | D114: 1.0816
C115: 1.05 | D115: 1.1025
C116: 1.06 | D116: 1.1236
C117: 1.07 | D117: 1.1449
C118: 1.08 | D118: 1.1664
C119: 1.09 | D119: 1.1881
C120: 1.1 | D120: 1.21
C121: 1.11 | D121: 1.2321
C122: 1.12 | D122: 1.2544
C123: 1.13 | D123: 1.2769
C124: 1.14 | D124: 1.2996
C125: 1.15 | D125: 1.3225
C126: 1.16 | D126: 1.3456
C127: 1.17 | D127: 1.3689
C128: 1.18 | D128: 1.3924
C129: 1.19 | D129: 1.4161
C130: 1.2 | D130: 1.44
C131: 1.21 | D131: 1.4641
C132: 1.22 | D132: 1.4884
C133: 1.23 | D133: 1.5129
C134: 1.24 | D134: 1.5376
C135: 1.25 | D135: 1.5625
C136: 1.26 | D136: 1.5876
C137: 1.27 | D137: 1.6129
C138: 1.28 | D138: 1.6384
C139: =C138+$D$7 -> 1.29 | D139: 1.6641
C140: 1.3 | D140: 1.69
C141: 1.31 | D141: 1.7161
C142: 1.32 | D142: 1.7424
C143: 1.33 | D143: 1.7689
C144: 1.34 | D144: 1.7956
C145: 1.35 | D145: 1.8225
C146: 1.36 | D146: 1.8496
C147: 1.37 | D147: 1.8769
C148: 1.38 | D148: 1.9044
C149: 1.39 | D149: 1.9321
C150: 1.4 | D150: 1.96
C151: 1.41 | D151: 1.9881
C152: 1.42 | D152: 2.0164
C153: 1.43 | D153: 2.0449
C154: 1.44 | D154: 2.0736
C155: 1.45 | D155: 2.1025
C156: 1.46 | D156: 2.1316
C157: 1.47 | D157: 2.1609
C158: 1.48 | D158: 2.1904
C159: 1.49 | D159: 2.2201
C160: 1.5 | D160: 2.25
C161: 1.51 | D161: 2.2801
C162: 1.52 | D162: 2.3104
C163: 1.53 | D163: 2.3409
C164: 1.54 | D164: 2.3716
C165: 1.55 | D165: 2.4025
C166: 1.56 | D166: 2.4336
C167: 1.57 | D167: 2.4649
C168: 1.58 | D168: 2.4964
C169: 1.59 | D169: 2.5281
C170: 1.6 | D170: 2.56
C171: 1.61 | D171: 2.5921
C172: 1.62 | D172: 2.6244
C173: 1.63 | D173: 2.6569
C174: 1.64 | D174: 2.6896
C175: 1.65 | D175: 2.7225
C176: 1.66 | D176: 2.7556
C177: 1.67 | D177: 2.7889
C178: 1.68 | D178: 2.8224
C179: 1.69 | D179: 2.8561
C180: 1.7 | D180: 2.89
C181: 1.71 | D181: 2.9241
C182: 1.72 | D182: 2.9584
C183: 1.73 | D183: 2.9929
C184: 1.74 | D184: 3.0276
C185: 1.75 | D185: 3.0625
C186: 1.76 | D186: 3.0976
C187: 1.77 | D187: 3.1329
C188: 1.78 | D188: 3.1684
C189: 1.79 | D189: 3.2041
C190: 1.8 | D190: 3.24
C191: 1.81 | D191: 3.2761
C192: 1.82 | D192: 3.3124
C193: 1.83 | D193: 3.3489
C194: 1.84 | D194: 3.3856
C195: 1.85 | D195: 3.4225
C196: 1.86 | D196: 3.4596
C197: 1.87 | D197: 3.4969
C198: 1.88 | D198: 3.5344
C199: 1.89 | D199: 3.5721
C200: 1.9 | D200: 3.61
C201: 1.91 | D201: 3.6481
C202: 1.92 | D202: 3.6864
C203: =C202+$D$7 -> 1.93 | D203: 3.7249
... 138 more rows

Sheet digitize (hidden)
A1: VAN VOORHIS ENGINEERING SERVICES
A2: Digitization of Data - Analysis Workbook
A3: MikeVV@AnalysisChamp.com , 9/4/2012, 1/4/2013
L22: P | M22: nu
L23: 0 | M23: 18.7
L24: 10 | M24: 20.8
L25: 20 | M25: 24.3
L26: 30 | M26: 28.2
L27: 40 | M27: 32.5
C28: Microsoft Manipulating Points on Charts (MPOC) addin download | L28: 50 | M28: 36.7

Sheet graphics
A1: =Intro!H1&" 8/25/2016" -> VVES 8/25/2016
A2: Graphic Measurement - Analysis Workbook
A3: =Intro!A2 -> Owner@AnalysisChamp.com
B8: IMAGE 01 - Scale and Measurement | T8: 1.03 | U8: in | W8: <= Known feature length (red line) | AN8: =TEXT(T15,"0.00")&" "&U15 -> 0.84 in
T10: scale:
T11: =T8/shapedatafunction(curshname(),W14) -> 0.01389682716 | U11: =T8/shapedatafunction(curshname(),W14)
T13: measurements: | AT13: Places x,y coordinates of all freeform shapes at curser location
T14: =cvval(shapedatafield(curshname(),W14,"linelength")*T11,U8,U14) -> 1.03 | U14: in | W14: Straight Connector 62 | AE14: Known length (red)
T15: =cvval(shapedatafield(curshname(),W15,"linelength")*T11,U8,U15) -> 0.8446482853 | U15: in | W15: Straight Connector 4 | AE15: unknown length (yellow)
T16: =cvval(shapedatafield(curshname(),W16,"linelength")*T11,U8,U16) -> 2.262056071 | U16: in | W16: Freeform 19 | AE16: unknown length (green)
AU17: Places freeform shape at x,y coordinates beginning with curser location
R18: width | T18: =cvval(shapedatafield(curshname(),W18,R18)*$T$11,$U$8,U18) -> 2.066132026 | U18: =U20 -> in | W18: Rectangle 1
R19: height | T19: =cvval(shapedatafield(curshname(),W19,R19)*$T$11,$U$8,U19) -> 1.300374249 | U19: =U20 -> in | W19: =W18 -> Rectangle 1
R20: diagonal | T20: =(T18^2+T19^2)^(1/2) -> 2.441285468 | U20: in | W20: =W19 -> Rectangle 1
T23: =shapedatafield(curshname(),W14,"name") -> Straight Connector 62
T24: =curshname() -> Data

Sheet Section (hidden)
A1: SECTION CALCULATION WORKBOOK
A2: =Data!A2 -> Analysis - FreeStyle Spreadsheet
A3: =Data!A3 -> MJ Van Voorhis 2/11/2016, 8/25/16
B4: 3.3 | C4: 1.4
B6: X-coord | C6: Y-Coord
B7: 1 | C7: 9
B8: =B7+$B$4 -> 4.3 | C8: 6.5
B9: =B8+$B$4 -> 7.6 | C9: 5
B10: 10.9 | C10: 4
B11: 14.2 | C11: 4
B12: 17.5 | C12: 5
B13: 20.8 | C13: 6.5
B14: 24.1 | C14: 9
B15: 23.4 | C15: =C14+C4 -> 10.4
B16: 20 | C16: =C13+C4 -> 7.9
B17: =B12 -> 17.5 | C17: =C12+C4 -> 6.4
B18: =B11 -> 14.2 | C18: =C11+C4 -> 5.4
B19: =B10 -> 10.9 | C19: =C10+C4 -> 5.4
B20: 7.6 | C20: =C9+C4 -> 6.4
B21: 4.8 | C21: =C8+C4 -> 7.9
B22: 1.7 | C22: =C7+C4 -> 10.4
B23: =B22 -> 1.7 | C23: =C22 -> 10.4
B24: =B7 -> 1 | C24: =C7 -> 9
B26: (in) | C26: =B26 -> (in)
E28: Area = | F28: =Section_Area(B7:C24) -> -35.71 | G28: =B26&"^2" -> (in)^2 | H28: =Section_Area(B7:C24)
E29: xBar= | F29: =Section_XBar(B7:C24) -> 12.68350602 | G29: =B26 -> (in) | H29: =Section_XBar(B7:C24)
E30: yBar= | F30: =Section_YBar(B7:C24) -> 6.604639223 | G30: =C26 -> (in) | H30: =Section_YBar(B7:C24)
E31: Ix= | F31: =Section_IX(B7:C24) -> -1650.65165 | G31: =B26&"^4" -> (in)^4 | H31: =Section_IX(B7:C24)
E32: Iy= | F32: =Section_IY(B7:C24) -> -7416.584067 | G32: =C26&"^4" -> (in)^4 | H32: =Section_IY(B7:C24)
E33: IxBar= | F33: =Section_IXBar(B7:C24) -> -92.93648144 | G33: =G31 -> (in)^4 | H33: =Section_IXBar(B7:C24)
E34: IyBar= | F34: =Section_IYBar(B7:C24) -> -1671.869052 | G34: =G32 -> (in)^4 | H34: =Section_IYBar(B7:C24)
E35: JBar= | F35: =F33+F34 -> -1764.805533 | G35: =G34 -> (in)^4 | H35: =F33+F34
C56: area= | D56: =-F28 -> 35.71 | E56: in^2
C57: length = | D57: 110 | E57: in
C58: volume = | D58: =D57*D56 -> 3928.1 | E58: in^3
C59: density = | D59: =0.283 -> 0.283 | E59: lbm/in^3
C60: weight = | D60: =D59*D58 -> 1111.6523 | E60: lbm
C62: http://analysischamp.com/eex/expevalcv.asp
C63: http://analysischamp.com/StressBook/TABA1201.htm
C64: =-((2000+500) * 6^3)/(0.125*3 * 30000000)
C65: (lbf * ft^3)/(in * psi)
C66: = 83 in^4

Sheet vectors (hidden)
A1: =Data!A1 -> VVES
A2: =Data!A2 -> Analysis - FreeStyle Spreadsheet
A3: =Data!A3 -> MJ Van Voorhis 2/11/2016, 8/25/16 | C3: red = user input, black = calculated value
B5: Vector Cross and Dot Product Calculations | G5: data from map generated using Sketchup terrane saved as 3d .dxf
C6: x | D6: y | E6: z | G6: x' | H6: y' | I6: z'
B7: vecA = | C7: 1 | D7: 0 | E7: 0 | G7: -236.0072 | H7: 89.0875 | I7: -130.8703
B8: vecB = | C8: 0 | D8: 1 | E8: 0 | G8: -234.6757 | H8: 242.4688 | I8: -125.5653
B9: vecC = | C9: 0 | D9: 0 | E9: 1 | G9: -117.6027 | H9: 88.06 | I9: -91.5675
B10: vecD = | C10: 0 | D10: 0 | E10: 0 | G10: -118.9334 | H10: 86.0065 | I10: 0
B12: data: | G12: formula:
B13: vecA - vecD = | C13: =C7-C10 -> 1 | D13: =D7-D10 -> 0 | E13: =E7-E10 -> 0 | G13: =C7-C10 | H13: =D7-D10 | I13: =E7-E10
B14: vecB - vecD = | C14: =C8-C10 -> 0 | D14: =D8-D10 -> 1 | E14: =E8-E10 -> 0 | G14: =C8-C10 | H14: =D8-D10 | I14: =E8-E10
B15: vecC - vecD = | C15: =C9-C10 -> 0 | D15: =D9-D10 -> 0 | E15: =E9-E10 -> 1 | G15: =C9-C10 | H15: =D9-D10 | I15: =E9-E10
B17: (vecB-vecD)x(vecC-vecD) = | C17: =D14*E15-E14*D15 -> 1 | D17: =E14*C15-C14*E15 -> 0 | E17: =C14*D15-D14*C15 -> 0 | G17: =D14*E15-E14*D15 | H17: =E14*C15-C14*E15 | I17: =C14*D15-D14*C15
B18: http://en.wikipedia.org/wiki/Cross_product
B19: (vecA-vecD) . (vecB-vecD)x(vecC-vecD) = | C19: =ABS(C13*C17+D13*D17+E13*E17) -> 1 | G19: =ABS(C13*C17+D13*D17+E13*E17)
B20: http://en.wikipedia.org/wiki/Dot_proct
B22: volume= | C22: =C19/6 -> 0.1666666667 | G22: =C19/6
B23: Volume of a pyramid

Sheet SlideRule (hidden)
A1: SlideRule
AD2: http://www.antiquark.com/sliderule/sim/n909es/virtual-n909-es.html
AD3: FRONT SIDE
AB20: multiplication / division: | AC20: C & D scales
AB21: log / ln
AB22: sin / cos / tan
AD25: BACK SIDE

Sheet DXF (hidden)
B2: file: | C2: C:\Users\Owner\Desktop\FSGD-MVV160825.dxf
B3: sheet: | C3: DXF
B4: scale: | C4: 1 | H4: Sub VERTEXPOINTS() provides polyline coordinates
B5: layer: | C5: 0
B9: .xls: | C9: =CELL("filename") -> C:\Users\Owner\Desktop\[FreeStyle.xlsm]Intro
F22: Freeform 1
C23: 120 | D23: -210 | F23: 54.43495941 | G23: -146.3634644
C24: 135 | D24: -230 | F24: 70.18495941 | G24: -168.8634644
C25: 160 | D25: -215 | F25: 89.68495941 | G25: -153.8634644
C26: 180 | D26: -240 | F26: 112.1849594 | G26: -181.6134644
C27: 190 | D27: -230 | F27: 121.1849594 | G27: -171.1134644
C28: 220 | D28: -270 | F28: 151.9348755 | G28: -209.3634644
C29: 240 | D29: -255 | F29: 170.6848755 | G29: -193.6134644
C30: 270 | D30: -300 | F30: 203.6848755 | G30: -243.8634644
F31: Freeform 8
F32: 232.5714111 | G32: -139.9999237
C33: 560 | D33: =-140 -> -140 | F33: 332.5714111 | G33: -139.9999237
C34: 660 | D34: =D33 -> -140 | F34: 332.5714111 | G34: -249.9999237
C35: =C34 -> 660 | D35: =-250 -> -250 | F35: 232.5714111 | G35: -249.9999237
C36: =C33 -> 560 | D36: =D35 -> -250
C37: =C33 -> 560 | D37: =D33 -> -140
